Workbook

Sheet Read-me-first
A1: <?xml version="1.0" encoding="UTF-8"?>
B6: National Institutional Ranking Framework
B7: Data Submission Utility (For Engineering)
B8: Instructions
B9: Read the instructions given below carefully before collection of the data
A10: 1 | B10: This Data Submission Utility is provided to facilitate collection and submission of data required for ranking of institutions according to ranking formula developed by NIRF.
A11: 2 | B11: Institutions can use either of the following two methods to provide requisite data for ranking:
B12: (i) Collect the data using Data Submission Utility and generate an XML file using it that can be uploaded onto the Web-based Data Capturing Platform. See "How to generate and upload XML file through Data Submission Utility"; or
B13: (ii) Enter the data online directly into Data Capturing Platform that would be available by Dec., 2015 on NIRF portal.
A14: 3 | B14: Click at "Enable Macros" when you open the Data Submission Utility. In case you have opted for "Disabled Macros", close the file without saving it and opt for "Enable Macros" on reopening the file (*.xlsm file).
A15: 4 | B15: There are twelve worksheets in the Data Submission Utility, i.e. Registration Details, Faculty Summary, Faculty Details, IPR, Sponsored Research, Consultancy, Education Program, Students, Public Exam., Student Events, Facilities and PH Facilities. You are required to collect data on each of these parameters / sub-parameters. The data input type, i.e. numeric, text, date format, etc., is in-built into field. Please do not try to input any other type of values other than specified for a given field.
A16: 5 | B16: You can fill-in any of the 12 worksheets in any order depending on availability of data. However, once a datasheet is complete in all respect, click at "Validate" button to validate data values in each field. Once you click at "Validate", the utility will verify the data and prompt either of the two messages: i) "Sheet is Valid"; or ii). "Data is not proper" along with the respective fields where corrections are required. Correct the data for respective fields and validate again till you get the prompt "Sheet is Valid".
A17: 6 | B17: Instructions / comments to submit data for each field is given either in respective field (on mouse hover) OR worksheet. Please read these instructions carefully.
A18: 7 | B18: Only data that can be verified through official records should be provided. All the data finally up-loaded into the Data Capturing System of NIRF should also be made publicly visible on the institute / college website, and should be archived for at least three years. A copy of the same will be made available for the public through the NIRF portal.
A19: 8 | B19: All statements of expenditure on different heads should be verifiable from annual accounts for the appropriate financial year.
A20: 9 | B20: All financial data should pertain to the appropriate financial year (i.e. April to March), student and faculty data for the academic year (i.e. July to June) and publications and other information for the calendar year (i.e. January to December) under reference. The appropriate year description is also made explicit in the worksheet.
A21: 10 | B21: While submitting and up-loading the data, the institute should agree to these and other terms and conditions that may be decided by the Ranking Authority from time to time.
A22: 11 | B22: You can either use Data Submission Utility OR online data capturing platform for submission of data. You can use only one of the alternatives and not a mixture of the two.
A23: 12 | B23: There are two attachments that are to be uploaded on to the "Data Capturing Platform" i.e. List of Research Publications (as per instructions given in IPR worksheet) and Zero-deficiency Report from AICTE, if applicable.
A24: 13 | B24: Difficulties, comments and suggestions regarding Data Submission Utility may please be communicated to "helpdesk@nirfindia.org"
B26: How to generate and upload XML file through Data Submission Utility
A27: 1 | B27: The button for generating XML for all the twelve worksheets is available on the twelfth worksheet entitled "PH_Facilities". Generate XML only when you have validated all worksheets. Click on the 'Generate XML' button. This will revalidate all the sheets, and direct you to the confirmation page which shows XML for various worksheets and the number of rows generated for every worksheet.
A28: 2 | B28: The XML file will be generated with Institute ID (e.g., NIRF-ENGG-1-0123456789.XML) in the same folder location where Data Submission Utility is available. This XML can then be uploaded onto the NIRF website.

Sheet Registration Details
A8: Registration Details
B10: Institute ID (NIRF ID) | C10: NIRF-ENGG-1-2453623896
B11: Ranking Year | C11: 2015
B12: Name of Nodal Officer | C12: Dr.P.S.Adwani
B13: Nodal Officer's Email | C13: principalgeca@yahoo.com
B14: Mobile No. of Nodal Officer | C14: 9823160390
B15: Place | C15: Aurangabad
B16: Creation Date | C16: =TODAY() -> 2016-10-04
B17: Is Revised | C17: N

Sheet Faculty Summary
A5: Details of Faculty for all Programs Year-wise (Academic Years) for three Years (1.a and 1.b)
A7: Sl. No. | B7: Academic Year | C7: Number of faculty (Include regular faculty only) | G7: Average Faculty Experience | H7: Number of Visiting Faculty with PhD only, for at least one semester on full-time basis
C8: Male | E8: Female | H8: Male | J8: Female
C9: With PhD as highest degree | D9: With M.Tech as highest degree | E9: With PhD as highest degree | F9: With M.Tech as highest degree | H9: Visiting Faculty for One semester only | I9: Visiting Faculty for both semesters | J9: Visiting Faculty for One semester only | K9: Visiting Faculty for both semester
A10: [1] | B10: [2] | C10: [3] | D10: [4] | E10: [5] | F10: [6] | G10: [7] | H10: [8] | I10: [9] | J10: [10] | K10: [11]
A11: Input type => | C11: numeric only | D11: numeric only | E11: numeric only | F11: numeric only | G11: number only | H11: numeric only | I11: numeric only | J11: numeric only | K11: numeric only
A12: 1 | B12: 2014-15 | C12: 19 | D12: 19 | E12: 6 | F12: 25 | G12: (to be computed by the system) | H12: 2 | I12: 0 | J12: 0 | K12: 0
A13: 2 | B13: 2013-14 | C13: 19 | D13: 18 | E13: 6 | F13: 22 | H13: 1 | I13: 0 | J13: 0 | K13: 0
A14: 3 | B14: 2012-13 | C14: 15 | D14: 20 | E14: 6 | F14: 21 | H14: 2 | I14: 0 | J14: 0 | K14: 0
B19: Notes on "Faculty Summary"
B20: Col: 3-6 | C20: i) Fill in the numbers of faculty (Male/Female) with Ph.D. / M.Tech as highest degree in respective columns. ii) Number of Faculty members having both M.Tech & Ph.D. should be included under column 3/5 only for male / female faculty. iii) Regular appointment means faculty on full-time basis with no time limit on their employment. However, faculty on contract basis for a period of not less than 3 years, on gross salary similar to those who are permanent can also be included. iv) Faculty members with a B.Tech (or equivalent qualification) should not be counted.
B21: Col: 7 | C21: The Average faculty experience will be computed based on the age of the faculty members in the faculty details. Fill in the date of birth and other details in the "Faculty Details" sheet carefully.
B22: Col:8-11 | C22: Fill-in the number of visiting faculty (Male/Female) with Ph.D. only who have taught at least one semester in Column 8 and 10 respectively. The number of visiting faculty who have taught two semesters in an academic year should be given in column 9 & 11 respectively. Do not count these faculty members while filling-in the details for column 8 & 10.

Sheet Faculty_Details
A4: Sr. No. | B4: Faculty Name | C4: Gender | D4: Pan No | E4: Designation | F4: Date of Birth | G4: Highest Qualification Mtech/Ph.D. | H4: Year of Acquiring Highest Degree | I4: Teaching Experience in No. of Years in relevant subject area - Regular Capacity - Year | J4: Teaching Experience in No. of Years in relevant subject area - Regular Capacity - Months | K4: Teaching Experience in No. of Years in relevant subject area - Contractual Capacity - Year | L4: Teaching Experience in No. of Years in relevant subject area - Contractual Capacity - Months | M4: Experience in Industry / Research Organisation in - Years | N4: Experience in Industry / Research Organisation in - Months | O4: Total Experience in No. of Years - Years | P4: Total Experience in No. of Years - Months | Q4: Present Association Type | R4: If Visiting Faculty : Number of semesters taught last year | S4: Date of Joining the Institute | U4: Date of Leaving the Institute
A5: 72 | B5: =TODAY() -> 2016-10-04 | C5: =YEAR(B5) -> 2016 | D5: =+C5-20 -> 1996 | E5: =DATE(D5,12,31) -> 1996-12-31
A6: Details of all Faculty for Last 3 Academic Years (1.b)
A7: Sl. No. | B7: Name of the Faculty | C7: Male/ Female | D7: PAN No. | E7: Designation | F7: Date of Birth | G7: Highest Qualification MTech/Ph.D. | H7: Year of acquiring Highest Degree | I7: Teaching Experience in No. of Years in relevant subject area | M7: Experience in Industry/ Research Organisation in No. of Years, if any | O7: Total Experience in no. of years | Q7: Type | R7: If Visiting Faculty: number of semesters taught last year | S7: Date of Joining the Institute | T7: Job Status | U7: Date of Leaving the Institute
I8: Regular capacity | K8: Contractual capacity | O8: Years | P8: Months
I9: years | J9: months | K9: years | L9: months | M9: years | N9: months
A10: [1] | B10: [2] | C10: [3] | D10: [4] | E10: [5] | F10: [6] | G10: [7] | H10: [8] | I10: [9] | J10: [10] | K10: [11] | L10: [12] | M10: [13] | N10: [14] | O10: [15] | P10: [16] | Q10: [17] | R10: [18] | S10: [19] | T10: [20] | U10: [21] | W10: Year Total | X10: Month total trunc | Y10: month total with mod | Z10: Age
A11: Sr. No. | B11: Last name, First name, Middle name (full) | C11: Male - M, Female - F | D11: 10 character | E11: Professor Associate Professor Asstt. Professor Emeritus Professor Other | F11: DD-MM-YYYY | G11: PG (MTech), PhD | H11: YYYY | I11: numeric only | J11: numeric only | K11: numeric only | L11: numeric only | M11: numeric only | N11: numeric only | O11: numeric only (computed by system) | P11: numeric only (computed by system) | Q11: Regular / Adhoc / Contractual / Full-time visiting | R11: 1- for one semester only, 2- for both semesters | S11: DD-MM-YYYY | T11: DD-MM-YYYY 1- Continue 2 - Leaving | U11: DD-MM-YYYY
A12: 1 | B12: ADWANI PRAKASH SUNDARLAL | C12: M | D12: ABGPA2931F | E12: Professor | F12: 1956-10-10 | G12: PhD | H12: 2007 | I12: 30 | J12: 0 | K12: 0 | L12: 0 | M12: 0 | N12: 0 | O12: =+W12+X12 -> 30 | P12: =+Y12 -> 0 | Q12: Regular | R12: 0 | S12: 2013-10-23 | T12: 1 | U12: 2015-12-31 | W12: =(I12+K12+M12) -> 30 | X12: =TRUNC((J12+L12+N12)/12) -> 0 | Y12: =MOD((J12+L12+N12),12) -> 0 | Z12: =DATEDIF(F12,$B$5,"y")-20 -> 39
A13: =+A12+1 -> 2 | B13: RAMAKANT SHRIVASTAVA | C13: M | D13: AEOP51011D | E13: Associate Professor | F13: 1967-02-21 | G13: PhD | H13: 2009 | I13: 22 | J13: 11 | K13: 0 | L13: 0 | M13: 0 | N13: 0 | O13: 22 | P13: 11 | Q13: Regular | R13: 0 | S13: 1996-03-08 | T13: 1 | U13: 2015-12-31 | W13: 22 | X13: 0 | Y13: 11 | Z13: 29
A14: 3 | B14: CHIKALTHANKAR SANJAY BAHARATRAO | C14: M | D14: ACMPC9454A | E14: Asstt. Professor | F14: 1968-03-01 | G14: PhD | H14: 2011 | I14: 22 | J14: 6 | K14: 0 | L14: 0 | M14: 3 | N14: 0 | O14: =+W14+X14 -> 25 | P14: =+Y14 -> 6 | Q14: Regular | R14: 0 | S14: 2003-11-01 | T14: 1 | U14: 2015-12-31 | W14: =(I14+K14+M14) -> 25 | X14: =TRUNC((J14+L14+N14)/12) -> 0 | Y14: =MOD((J14+L14+N14),12) -> 6 | Z14: =DATEDIF(F14,$B$5,"y")-20 -> 28
A15: 4 | B15: PATIL SUNIL APPARAO | C15: M | D15: ACNPP6778R | E15: Associate Professor | F15: 1967-01-01 | G15: PhD | H15: 2015 | I15: 24 | J15: 3 | K15: 0 | L15: 0 | M15: 3 | N15: 0 | O15: =+W15+X15 -> 27 | P15: =+Y15 -> 3 | Q15: Regular | R15: 0 | S15: 2003-11-21 | T15: 1 | U15: 2015-12-31 | W15: =(I15+K15+M15) -> 27 | X15: =TRUNC((J15+L15+N15)/12) -> 0 | Y15: =MOD((J15+L15+N15),12) -> 3 | Z15: =DATEDIF(F15,$B$5,"y")-20 -> 29
A16: 5 | B16: MADAVI KISHOR RATIRAM | C16: M | D16: AJCPM2868D | E16: Asstt. Professor | F16: 1972-09-25 | G16: M.Tech. | H16: 2014 | I16: 14 | J16: 0 | K16: 1 | L16: 0 | M16: 1 | N16: 0 | O16: =+W16+X16 -> 16 | P16: =+Y16 -> 0 | Q16: Regular | R16: 0 | S16: 2003-11-11 | T16: 1 | U16: 2015-12-31 | W16: =(I16+K16+M16) -> 16 | X16: =TRUNC((J16+L16+N16)/12) -> 0 | Y16: =MOD((J16+L16+N16),12) -> 0 | Z16: =DATEDIF(F16,$B$5,"y")-20 -> 24
A17: 6 | B17: HARNE MADHAVI SHASHIKUMAR | C17: F | D17: ALIPL0331M | E17: Asstt. Professor | F17: 1971-08-18 | G17: M.Tech. | H17: 2004 | I17: 19 | J17: 0 | K17: 0 | L17: 0 | M17: 1 | N17: 0 | O17: =+W17+X17 -> 20 | P17: =+Y17 -> 0 | Q17: Regular | R17: 0 | S17: 2003-11-01 | T17: 1 | U17: 2015-12-31 | W17: =(I17+K17+M17) -> 20 | X17: =TRUNC((J17+L17+N17)/12) -> 0 | Y17: =MOD((J17+L17+N17),12) -> 0 | Z17: =DATEDIF(F17,$B$5,"y")-20 -> 25
A18: 7 | B18: SONAWANE SHYAM ARJUN | C18: M | D18: AXUPS9713P | E18: Asstt. Professor | F18: 1976-07-31 | G18: PhD | H18: 2013 | I18: 15 | J18: 11 | K18: 0 | L18: 0 | M18: 0 | N18: 0 | O18: =+W18+X18 -> 15 | P18: =+Y18 -> 11 | Q18: Regular | R18: 0 | S18: 1999-10-18 | T18: 1 | U18: 2015-12-31 | W18: =(I18+K18+M18) -> 15 | X18: =TRUNC((J18+L18+N18)/12) -> 0 | Y18: =MOD((J18+L18+N18),12) -> 11 | Z18: =DATEDIF(F18,$B$5,"y")-20 -> 20
A19: 8 | B19: HAMBIRE UMESH VISHNU | C19: M | D19: AJCPM2738D | E19: Asstt. Professor | F19: 1973-05-15 | G19: PhD | H19: 2014 | I19: 15 | J19: 0 | K19: 0 | L19: 0 | M19: 6 | N19: 0 | O19: =+W19+X19 -> 21 | P19: =+Y19 -> 0 | Q19: Regular | R19: 0 | S19: 2001-01-11 | T19: 1 | U19: 2015-12-31 | W19: =(I19+K19+M19) -> 21 | X19: =TRUNC((J19+L19+N19)/12) -> 0 | Y19: =MOD((J19+L19+N19),12) -> 0 | Z19: =DATEDIF(F19,$B$5,"y")-20 -> 23
A20: 9 | B20: AMBEKAR SHAILESH DAMODARRAO | C20: M | D20: AFNPA4206J | E20: Asstt. Professor | F20: 1975-12-01 | G20: M.Tech. | H20: 2007 | I20: 18 | J20: 5 | K20: 0 | L20: 0 | M20: 1 | N20: 0 | O20: =+W20+X20 -> 19 | P20: =+Y20 -> 5 | Q20: Regular | R20: 0 | S20: 2011-01-05 | T20: 1 | U20: 2015-12-31 | W20: =(I20+K20+M20) -> 19 | X20: =TRUNC((J20+L20+N20)/12) -> 0 | Y20: =MOD((J20+L20+N20),12) -> 5 | Z20: =DATEDIF(F20,$B$5,"y")-20 -> 20
A21: 10 | B21: KUSHAL SURESH WASANKAR | C21: M | D21: AAUPW4859R | E21: Asstt. Professor | F21: 1981-06-04 | G21: M.Tech. | H21: 2007 | I21: 6 | J21: 0 | K21: 4 | L21: 0 | M21: 0 | N21: 0 | O21: =+W21+X21 -> 10 | P21: =+Y21 -> 0 | Q21: Regular | R21: 0 | S21: 2011-10-20 | T21: 1 | U21: 2015-12-31 | W21: =(I21+K21+M21) -> 10 | X21: =TRUNC((J21+L21+N21)/12) -> 0 | Y21: =MOD((J21+L21+N21),12) -> 0 | Z21: =DATEDIF(F21,$B$5,"y")-20 -> 15
A22: 11 | B22: KULKARNI SAILI RAMESH | C22: F | D22: BCFPK0023H | E22: Asstt. Professor | F22: 1981-05-04 | G22: M.Tech. | H22: 2009 | I22: 5 | J22: 0 | K22: 3 | L22: 4 | M22: 0 | N22: 0 | O22: =+W22+X22 -> 8 | P22: =+Y22 -> 4 | Q22: Regular | R22: 0 | S22: 2011-01-01 | T22: 1 | U22: 2015-12-31 | W22: =(I22+K22+M22) -> 8 | X22: =TRUNC((J22+L22+N22)/12) -> 0 | Y22: =MOD((J22+L22+N22),12) -> 4 | Z22: =DATEDIF(F22,$B$5,"y")-20 -> 15
A23: 12 | B23: RATHI MAHENDRA GIRDHARILAL | C23: M | D23: ADWPR8182R | E23: Asstt. Professor | F23: 1965-06-05 | G23: M.Tech. | H23: 2005 | I23: 15 | J23: 4 | K23: 0 | L23: 0 | M23: 10 | N23: 0 | O23: =+W23+X23 -> 25 | P23: =+Y23 -> 4 | Q23: Regular | R23: 0 | S23: 2000-08-04 | T23: 1 | U23: 2015-12-31 | W23: =(I23+K23+M23) -> 25 | X23: =TRUNC((J23+L23+N23)/12) -> 0 | Y23: =MOD((J23+L23+N23),12) -> 4 | Z23: =DATEDIF(F23,$B$5,"y")-20 -> 31
A24: 13 | B24: Dr. U. J. Kahalekar | C24: M | D24: ACOPK8746P | E24: Professor | F24: 1962-06-06 | G24: PhD | H24: 1996 | I24: 25 | J24: 10 | K24: 0 | L24: 0 | M24: 6 | N24: 0 | O24: =+W24+X24 -> 31 | P24: =+Y24 -> 10 | Q24: Regular | R24: 0 | S24: 1990-01-02 | T24: 1 | U24: 2015-12-31 | W24: =(I24+K24+M24) -> 31 | X24: =TRUNC((J24+L24+N24)/12) -> 0 | Y24: =MOD((J24+L24+N24),12) -> 10 | Z24: =DATEDIF(F24,$B$5,"y")-20 -> 34
A25: 14 | B25: Dr. R. V. Shetkar | C25: M | D25: AEBPS6877G | E25: Associate Professor | F25: 1963-08-15 | G25: PhD | H25: 2009 | I25: 29 | J25: 4 | K25: 0 | L25: 0 | M25: 0 | N25: 0 | O25: =+W25+X25 -> 29 | P25: =+Y25 -> 4 | Q25: Regular | R25: 0 | S25: 2010-07-20 | T25: 1 | U25: 2015-12-31 | W25: =(I25+K25+M25) -> 29 | X25: =TRUNC((J25+L25+N25)/12) -> 0 | Y25: =MOD((J25+L25+N25),12) -> 4 | Z25: =DATEDIF(F25,$B$5,"y")-20 -> 33
A26: 15 | B26: Dr. K. A. Patil | C26: M | D26: ACDPP0125E | E26: Associate Professor | F26: 1967-03-02 | G26: PhD | H26: 2001 | I26: 25 | J26: 6 | K26: 0 | L26: 0 | M26: 0 | N26: 0 | O26: =+W26+X26 -> 25 | P26: =+Y26 -> 6 | Q26: Regular | R26: 0 | S26: 1996-06-19 | T26: 1 | U26: 2015-12-31 | W26: =(I26+K26+M26) -> 25 | X26: =TRUNC((J26+L26+N26)/12) -> 0 | Y26: =MOD((J26+L26+N26),12) -> 6 | Z26: =DATEDIF(F26,$B$5,"y")-20 -> 29
A27: 16 | B27: Prof. A. M. Mokadam | C27: M | D27: ABCPM6823E | E27: Associate Professor | F27: 1964-12-31 | G27: M.Tech. | H27: 1993 | I27: 19 | J27: 8 | K27: 0 | L27: 0 | M27: 9 | N27: 6 | O27: =+W27+X27 -> 29 | P27: =+Y27 -> 2 | Q27: Regular | R27: 0 | S27: 1996-02-02 | T27: 1 | U27: 2015-12-31 | W27: =(I27+K27+M27) -> 28 | X27: =TRUNC((J27+L27+N27)/12) -> 1 | Y27: =MOD((J27+L27+N27),12) -> 2 | Z27: =DATEDIF(F27,$B$5,"y")-20 -> 31
A28: 17 | B28: Dr. R. M. Damgir | C28: M | D28: ABGPD0978D | E28: Associate Professor | F28: 1963-01-07 | G28: PhD | H28: 2011 | I28: 25 | J28: 7 | K28: 0 | L28: 0 | M28: 2 | N28: 2 | O28: =+W28+X28 -> 27 | P28: =+Y28 -> 9 | Q28: Regular | R28: 0 | S28: 1998-04-09 | T28: 1 | U28: 2015-12-31 | W28: =(I28+K28+M28) -> 27 | X28: =TRUNC((J28+L28+N28)/12) -> 0 | Y28: =MOD((J28+L28+N28),12) -> 9 | Z28: =DATEDIF(F28,$B$5,"y")-20 -> 33
A29: 18 | B29: Prof. G. K. Patil | C29: M | D29: AKGPP6574L | E29: Asstt. Professor | F29: 1971-12-22 | G29: M.Tech. | H29: 2007 | I29: 17 | J29: 1 | K29: 0 | L29: 0 | M29: 0 | N29: 0 | O29: =+W29+X29 -> 17 | P29: =+Y29 -> 1 | Q29: Regular | R29: 0 | S29: 1998-11-23 | T29: 1 | U29: 2015-12-31 | W29: =(I29+K29+M29) -> 17 | X29: =TRUNC((J29+L29+N29)/12) -> 0 | Y29: =MOD((J29+L29+N29),12) -> 1 | Z29: =DATEDIF(F29,$B$5,"y")-20 -> 24
A30: 19 | B30: Dr. D. G. Regulwar | C30: M | D30: AEVPR7403P | E30: Associate Professor | F30: 1964-07-17 | G30: PhD | H30: 2006 | I30: 26 | J30: 1 | K30: 0 | L30: 0 | M30: 0 | N30: 0 | O30: =+W30+X30 -> 26 | P30: =+Y30 -> 1 | Q30: Regular | R30: 0 | S30: 1998-10-11 | T30: 1 | U30: 2015-12-31 | W30: =(I30+K30+M30) -> 26 | X30: =TRUNC((J30+L30+N30)/12) -> 0 | Y30: =MOD((J30+L30+N30),12) -> 1 | Z30: =DATEDIF(F30,$B$5,"y")-20 -> 32
A31: 20 | B31: Dr. P. A. Sadgir | C31: M | D31: AEWPS2349E | E31: Associate Professor | F31: 1967-10-21 | G31: PhD | H31: 2007 | I31: 25 | J31: 4 | K31: 0 | L31: 0 | M31: 1 | N31: 0 | O31: =+W31+X31 -> 26 | P31: =+Y31 -> 4 | Q31: Regular | R31: 0 | S31: 2003-04-11 | T31: 1 | U31: 2015-12-31 | W31: =(I31+K31+M31) -> 26 | X31: =TRUNC((J31+L31+N31)/12) -> 0 | Y31: =MOD((J31+L31+N31),12) -> 4 | Z31: =DATEDIF(F31,$B$5,"y")-20 -> 28
A32: 21 | B32: Prof. S. S. Koranne | C32: F | D32: AGDPK7686H | E32: Asstt. Professor | F32: 1967-10-24 | G32: M.Tech. | H32: 1998 | I32: 25 | J32: 0 | K32: 0 | L32: 0 | M32: 0 | N32: 0 | O32: =+W32+X32 -> 25 | P32: =+Y32 -> 0 | Q32: Regular | R32: 0 | S32: 2003-04-11 | T32: 1 | U32: 2015-12-31 | W32: =(I32+K32+M32) -> 25 | X32: =TRUNC((J32+L32+N32)/12) -> 0 | Y32: =MOD((J32+L32+N32),12) -> 0 | Z32: =DATEDIF(F32,$B$5,"y")-20 -> 28
A33: 22 | B33: Gaikwad Varsha Prabhakar | C33: F | D33: AXOPG6408R | E33: Asstt. Professor | F33: 1981-02-16 | G33: M.Tech. | H33: 2012 | I33: 4 | J33: 11 | K33: 4 | L33: 2 | M33: 0 | N33: 0 | O33: =+W33+X33 -> 9 | P33: =+Y33 -> 1 | Q33: Regular | R33: 0 | S33: 2011-01-07 | T33: 1 | U33: 2015-12-31 | W33: =(I33+K33+M33) -> 8 | X33: =TRUNC((J33+L33+N33)/12) -> 1 | Y33: =MOD((J33+L33+N33),12) -> 1 | Z33: =DATEDIF(F33,$B$5,"y")-20 -> 15
A34: 23 | B34: Gaikwad Chitra Madhusudan | C34: F | D34: AQKPG2673D | E34: Asstt. Professor | F34: 1978-04-08 | G34: M.Tech. | H34: 2007 | I34: 9 | J34: 9 | K34: 2 | L34: 7 | M34: 0 | N34: 0 | O34: =+W34+X34 -> 12 | P34: =+Y34 -> 4 | Q34: Regular | R34: 0 | S34: 2011-01-11 | T34: 1 | U34: 2015-12-31 | W34: =(I34+K34+M34) -> 11 | X34: =TRUNC((J34+L34+N34)/12) -> 1 | Y34: =MOD((J34+L34+N34),12) -> 4 | Z34: =DATEDIF(F34,$B$5,"y")-20 -> 18
A35: 24 | B35: Gandle Komal Shatrughan | C35: F | D35: ASXPG9976A | E35: Asstt. Professor | F35: 1984-05-05 | G35: M.Tech. | H35: 2014 | I35: 6 | J35: 7 | K35: 1 | L35: 5 | M35: 0 | N35: 0 | O35: =+W35+X35 -> 8 | P35: =+Y35 -> 0 | Q35: Regular | R35: 0 | S35: 2011-01-06 | T35: 1 | U35: 2015-12-31 | W35: =(I35+K35+M35) -> 7 | X35: =TRUNC((J35+L35+N35)/12) -> 1 | Y35: =MOD((J35+L35+N35),12) -> 0 | Z35: =DATEDIF(F35,$B$5,"y")-20 -> 12
A36: 25 | B36: Ghule Anjana Narayanrao | C36: F | D36: AGRPJ2868G | E36: Asstt. Professor | F36: 1976-03-05 | G36: M.Tech. | H36: 2008 | I36: 9 | J36: 4 | K36: 6 | L36: 10 | M36: 0 | N36: 0 | O36: =+W36+X36 -> 16 | P36: =+Y36 -> 2 | Q36: Regular | R36: 0 | S36: 2011-01-14 | T36: 1 | U36: 2015-12-31 | W36: =(I36+K36+M36) -> 15 | X36: =TRUNC((J36+L36+N36)/12) -> 1 | Y36: =MOD((J36+L36+N36),12) -> 2 | Z36: =DATEDIF(F36,$B$5,"y")-20 -> 20
A37: 26 | B37: Nemade Sangita Balkrishna | C37: F | D37: AQTPP7389L | E37: Asstt. Professor | F37: 1976-02-07 | G37: M.Tech. | H37: 2008 | I37: 8 | J37: 2 | K37: 3 | L37: 9 | M37: 0 | N37: 0 | O37: =+W37+X37 -> 11 | P37: =+Y37 -> 11 | Q37: Regular | R37: 0 | S37: 2011-04-08 | T37: 1 | U37: 2015-12-31 | W37: =(I37+K37+M37) -> 11 | X37: =TRUNC((J37+L37+N37)/12) -> 0 | Y37: =MOD((J37+L37+N37),12) -> 11 | Z37: =DATEDIF(F37,$B$5,"y")-20 -> 20
A38: 27 | B38: Patil Pallavi Prabhakar | C38: F | D38: AQHPP6048C | E38: Asstt. Professor | F38: 1982-08-28 | G38: M.Tech. | H38: 2015 | I38: 4 | J38: 11 | K38: 0 | L38: 0 | M38: 0 | N38: 0 | O38: =+W38+X38 -> 4 | P38: =+Y38 -> 11 | Q38: Regular | R38: 0 | S38: 2011-01-29 | T38: 1 | U38: 2015-12-31 | W38: =(I38+K38+M38) -> 4 | X38: =TRUNC((J38+L38+N38)/12) -> 0 | Y38: =MOD((J38+L38+N38),12) -> 11 | Z38: =DATEDIF(F38,$B$5,"y")-20 -> 14
A39: 28 | B39: Chavan Smita Marutirao | C39: F | D39: AKYPC6163A | E39: Asstt. Professor | F39: 1981-11-29 | G39: M.Tech. | H39: 2014 | I39: 7 | J39: 3 | K39: 0 | L39: 0 | M39: 0 | N39: 0 | O39: =+W39+X39 -> 7 | P39: =+Y39 -> 3 | Q39: Regular | R39: 0 | S39: 2011-01-04 | T39: 1 | U39: 2015-12-31 | W39: =(I39+K39+M39) -> 7 | X39: =TRUNC((J39+L39+N39)/12) -> 0 | Y39: =MOD((J39+L39+N39),12) -> 3 | Z39: =DATEDIF(F39,$B$5,"y")-20 -> 14
A40: 29 | B40: Laddha Shilpa Satishkumar | C40: F | D40: AMAPK0843M | E40: Asstt. Professor | F40: 1978-09-22 | G40: M.Tech. | H40: 2007 | I40: 4 | J40: 2 | K40: 0 | L40: 0 | M40: 0 | N40: 7 | O40: =+W40+X40 -> 4 | P40: =+Y40 -> 9 | Q40: Regular | R40: 0 | S40: 2011-10-07 | T40: 1 | U40: 2015-12-31 | W40: =(I40+K40+M40) -> 4 | X40: =TRUNC((J40+L40+N40)/12) -> 0 | Y40: =MOD((J40+L40+N40),12) -> 9 | Z40: =DATEDIF(F40,$B$5,"y")-20 -> 18
A41: 30 | B41: Sarode Kalpana Ramesh | C41: F | D41: AJWPC4885E | E41: Asstt. Professor | F41: 1975-08-31 | G41: M.Tech. | H41: 2008 | I41: 4 | J41: 0 | K41: 0 | L41: 0 | M41: 0 | N41: 0 | O41: =+W41+X41 -> 4 | P41: =+Y41 -> 0 | Q41: Regular | R41: 0 | S41: 2011-12-27 | T41: 1 | U41: 2015-12-31 | W41: =(I41+K41+M41) -> 4 | X41: =TRUNC((J41+L41+N41)/12) -> 0 | Y41: =MOD((J41+L41+N41),12) -> 0 | Z41: =DATEDIF(F41,$B$5,"y")-20 -> 21
A42: 31 | B42: Dr.A.S. Bhalchandra | C42: F | D42: ANMPB7738H | E42: Professor | F42: 1964-01-03 | G42: PhD | H42: 2004 | I42: 30 | J42: 0 | K42: 0 | L42: 0 | M42: 0 | N42: 0 | O42: =+W42+X42 -> 30 | P42: =+Y42 -> 0 | Q42: Regular | R42: 0 | S42: 2011-06-27 | T42: 1 | U42: 2015-12-31 | W42: =(I42+K42+M42) -> 30 | X42: =TRUNC((J42+L42+N42)/12) -> 0 | Y42: =MOD((J42+L42+N42),12) -> 0 | Z42: =DATEDIF(F42,$B$5,"y")-20 -> 32
A43: 32 | B43: Prof. S.R. Hirekhan | C43: M | D43: AATPH0737Q | E43: Associate Professor | F43: 1968-11-01 | G43: M.Tech. | H43: 1996 | I43: 25 | J43: 0 | K43: 0 | L43: 0 | M43: 0 | N43: 0 | O43: =+W43+X43 -> 25 | P43: =+Y43 -> 0 | Q43: Regular | R43: 0 | S43: 2012-06-06 | T43: 1 | U43: 2015-12-31 | W43: =(I43+K43+M43) -> 25 | X43: =TRUNC((J43+L43+N43)/12) -> 0 | Y43: =MOD((J43+L43+N43),12) -> 0 | Z43: =DATEDIF(F43,$B$5,"y")-20 -> 27
A44: 33 | B44: Prof. R.P.Chaudhari | C44: M | D44: AAPPC3056M | E44: Associate Professor | F44: 1964-04-18 | G44: M.Tech. | H44: 1993 | I44: 27 | J44: 0 | K44: 0 | L44: 0 | M44: 0 | N44: 0 | O44: =+W44+X44 -> 27 | P44: =+Y44 -> 0 | Q44: Regular | R44: 0 | S44: 2007-07-07 | T44: 1 | U44: 2015-12-31 | W44: =(I44+K44+M44) -> 27 | X44: =TRUNC((J44+L44+N44)/12) -> 0 | Y44: =MOD((J44+L44+N44),12) -> 0 | Z44: =DATEDIF(F44,$B$5,"y")-20 -> 32
A45: 34 | B45: Dr. M.H. Nerkar | C45: M | D45: AAKPN6995B | E45: Associate Professor | F45: 1961-08-19 | G45: PhD | H45: 1999 | I45: 27 | J45: 0 | K45: 0 | L45: 0 | M45: 0 | N45: 0 | O45: =+W45+X45 -> 27 | P45: =+Y45 -> 0 | Q45: Regular | R45: 0 | S45: 2013-06-08 | T45: 1 | U45: 2015-12-31 | W45: =(I45+K45+M45) -> 27 | X45: =TRUNC((J45+L45+N45)/12) -> 0 | Y45: =MOD((J45+L45+N45),12) -> 0 | Z45: =DATEDIF(F45,$B$5,"y")-20 -> 35
A46: 35 | B46: Prof. N.R. Kolhare | C46: F | D46: AJRPK5824G | E46: Associate Professor | F46: 1976-02-22 | G46: M.Tech. | H46: 1998 | I46: 17 | J46: 0 | K46: 0 | L46: 0 | M46: 1 | N46: 0 | O46: =+W46+X46 -> 18 | P46: =+Y46 -> 0 | Q46: Regular | R46: 0 | S46: 2003-11-01 | T46: 1 | U46: 2015-12-31 | W46: =(I46+K46+M46) -> 18 | X46: =TRUNC((J46+L46+N46)/12) -> 0 | Y46: =MOD((J46+L46+N46),12) -> 0 | Z46: =DATEDIF(F46,$B$5,"y")-20 -> 20
A47: 36 | B47: Dr.A.R.Karwankar | C47: M | D47: ACOPK7562P | E47: Assistant Professor | F47: 1968-04-02 | G47: PhD | H47: 2011 | I47: 25 | J47: 0 | K47: 0 | L47: 0 | M47: 0 | N47: 0 | O47: =+W47+X47 -> 25 | P47: =+Y47 -> 0 | Q47: Regular | R47: 0 | S47: 2003-11-17 | T47: 1 | U47: 2015-12-31 | W47: =(I47+K47+M47) -> 25 | X47: =TRUNC((J47+L47+N47)/12) -> 0 | Y47: =MOD((J47+L47+N47),12) -> 0 | Z47: =DATEDIF(F47,$B$5,"y")-20 -> 28
A48: 37 | B48: Prof.N. G. Pantawane | C48: F | D48: AHTPP3700G | E48: Assistant Professor | F48: 1973-04-14 | G48: M.Tech. | H48: 2001 | I48: 19 | J48: 0 | K48: 0 | L48: 0 | M48: 0 | N48: 0 | O48: =+W48+X48 -> 19 | P48: =+Y48 -> 0 | Q48: Regular | R48: 0 | S48: 2004-07-05 | T48: 1 | U48: 2015-12-31 | W48: =(I48+K48+M48) -> 19 | X48: =TRUNC((J48+L48+N48)/12) -> 0 | Y48: =MOD((J48+L48+N48),12) -> 0 | Z48: =DATEDIF(F48,$B$5,"y")-20 -> 23
A49: 38 | B49: Prof. P.H. Bhagat | C49: F | D49: ASUPB4999D | E49: Assistant Professor | F49: 1983-02-18 | G49: M.Tech. | H49: 2009 | I49: 6 | J49: 0 | K49: 0 | L49: 0 | M49: 0 | N49: 0 | O49: =+W49+X49 -> 6 | P49: =+Y49 -> 0 | Q49: Regular | R49: 0 | S49: 2010-08-16 | T49: 1 | U49: 2015-12-31 | W49: =(I49+K49+M49) -> 6 | X49: =TRUNC((J49+L49+N49)/12) -> 0 | Y49: =MOD((J49+L49+N49),12) -> 0 | Z49: =DATEDIF(F49,$B$5,"y")-20 -> 13
A50: 39 | B50: Dr. V.R. Ratnaparkhe | C50: F | D50: AAUPR9651A | E50: Assistant Professor | F50: 1968-05-05 | G50: PhD | H50: 2009 | I50: 18 | J50: 0 | K50: 0 | L50: 0 | M50: 0 | N50: 0 | O50: =+W50+X50 -> 18 | P50: =+Y50 -> 0 | Q50: Regular | R50: 0 | S50: 2011-01-12 | T50: 1 | U50: 2015-12-31 | W50: =(I50+K50+M50) -> 18 | X50: =TRUNC((J50+L50+N50)/12) -> 0 | Y50: =MOD((J50+L50+N50),12) -> 0 | Z50: =DATEDIF(F50,$B$5,"y")-20 -> 28
A51: 40 | B51: Prof. S.S. Agrawal | C51: F | D51: ADBPA7858G | E51: Assistant Professor | F51: 1967-01-02 | G51: M.Tech. | H51: 2001 | I51: 19 | J51: 0 | K51: 0 | L51: 0 | M51: 0 | N51: 0 | O51: =+W51+X51 -> 19 | P51: =+Y51 -> 0 | Q51: Regular | R51: 0 | S51: 2011-01-12 | T51: 1 | U51: 2015-12-31 | W51: =(I51+K51+M51) -> 19 | X51: =TRUNC((J51+L51+N51)/12) -> 0 | Y51: =MOD((J51+L51+N51),12) -> 0 | Z51: =DATEDIF(F51,$B$5,"y")-20 -> 29
A52: 41 | B52: Dr. S.D. Bharkad | C52: F | D52: AHMPB9827H | E52: Assistant Professor | F52: 1981-09-01 | G52: PhD | H52: 2013 | I52: 12 | J52: 0 | K52: 0 | L52: 0 | M52: 0 | N52: 0 | O52: =+W52+X52 -> 12 | P52: =+Y52 -> 0 | Q52: Regular | R52: 0 | S52: 2010-12-22 | T52: 1 | U52: 2015-12-31 | W52: =(I52+K52+M52) -> 12 | X52: =TRUNC((J52+L52+N52)/12) -> 0 | Y52: =MOD((J52+L52+N52),12) -> 0 | Z52: =DATEDIF(F52,$B$5,"y")-20 -> 15
A53: 42 | B53: Prof. S.B. Gundre | C53: F | D53: AXGPG4842H | E53: Assistant Professor | F53: 1983-06-15 | G53: M.Tech. | H53: 2008 | I53: 6 | J53: 0 | K53: 0 | L53: 0 | M53: 0 | N53: 0 | O53: =+W53+X53 -> 6 | P53: =+Y53 -> 0 | Q53: Regular | R53: 0 | S53: 2011-06-26 | T53: 1 | U53: 2015-12-31 | W53: =(I53+K53+M53) -> 6 | X53: =TRUNC((J53+L53+N53)/12) -> 0 | Y53: =MOD((J53+L53+N53),12) -> 0 | Z53: =DATEDIF(F53,$B$5,"y")-20 -> 13
A54: 43 | B54: Prof. S.R. Kulkarni | C54: F | D54: APYPD9365E | E54: Assistant Professor | F54: 1984-01-02 | G54: M.Tech. | H54: 2012 | I54: 6 | J54: 0 | K54: 0 | L54: 0 | M54: 2 | N54: 0 | O54: =+W54+X54 -> 8 | P54: =+Y54 -> 0 | Q54: Regular | R54: 0 | S54: 2011-06-28 | T54: 1 | U54: 2015-12-31 | W54: =(I54+K54+M54) -> 8 | X54: =TRUNC((J54+L54+N54)/12) -> 0 | Y54: =MOD((J54+L54+N54),12) -> 0 | Z54: =DATEDIF(F54,$B$5,"y")-20 -> 12
A55: 44 | B55: Prof. M.R. Joshi | C55: F | D55: AEBPJ2069R | E55: Assistant Professor | F55: 1968-01-31 | G55: M.Tech. | H55: 2013 | I55: 21 | J55: 0 | K55: 0 | L55: 0 | M55: 0 | N55: 0 | O55: =+W55+X55 -> 21 | P55: =+Y55 -> 0 | Q55: Regular | R55: 0 | S55: 2007-10-04 | T55: 1 | U55: 2015-12-31 | W55: =(I55+K55+M55) -> 21 | X55: =TRUNC((J55+L55+N55)/12) -> 0 | Y55: =MOD((J55+L55+N55),12) -> 0 | Z55: =DATEDIF(F55,$B$5,"y")-20 -> 28
A56: 45 | B56: M.B NAGORI | C56: F | D56: AMAPK5740P | E56: Asstt. Professor | F56: 1974-07-22 | G56: M.Tech. | H56: 2001 | I56: 18 | J56: 0 | K56: 0 | L56: 0 | M56: 0 | N56: 0 | O56: =+W56+X56 -> 18 | P56: =+Y56 -> 0 | Q56: Regular | R56: 0 | S56: 2002-02-14 | T56: 1 | U56: 2015-12-31 | W56: =(I56+K56+M56) -> 18 | X56: =TRUNC((J56+L56+N56)/12) -> 0 | Y56: =MOD((J56+L56+N56),12) -> 0 | Z56: =DATEDIF(F56,$B$5,"y")-20 -> 22
A57: 46 | B57: S.G. SHIKALPURE | C57: M | D57: AVXPS2076A | E57: Asstt. Professor | F57: 1974-05-03 | G57: M.Tech. | H57: 2009 | I57: 14 | J57: 0 | K57: 0 | L57: 0 | M57: 0 | N57: 0 | O57: =+W57+X57 -> 14 | P57: =+Y57 -> 0 | Q57: Regular | R57: 0 | S57: 2009-08-29 | T57: 1 | U57: 2015-12-31 | W57: =(I57+K57+M57) -> 14 | X57: =TRUNC((J57+L57+N57)/12) -> 0 | Y57: =MOD((J57+L57+N57),12) -> 0 | Z57: =DATEDIF(F57,$B$5,"y")-20 -> 22
A58: 47 | B58: V. A. CHAKKARWAR | C58: F | D58: ARSPM4026H | E58: Asstt. Professor | F58: 1979-03-14 | G58: M.Tech. | H58: 2008 | I58: 5 | J58: 5 | K58: 5 | L58: 6 | M58: 0 | N58: 0 | O58: =+W58+X58 -> 10 | P58: =+Y58 -> 11 | Q58: Regular | R58: 0 | S58: 2005-01-25 | T58: 1 | U58: 2015-12-31 | W58: =(I58+K58+M58) -> 10 | X58: =TRUNC((J58+L58+N58)/12) -> 0 | Y58: =MOD((J58+L58+N58),12) -> 11 | Z58: =DATEDIF(F58,$B$5,"y")-20 -> 17
A59: 48 | B59: P. V. KULKARNI | C59: F | D59: BEMPK9516E | E59: Asstt. Professor | F59: 1980-06-13 | G59: M.Tech. | H59: 2007 | I59: 7 | J59: 3 | K59: 6 | L59: 8 | M59: 0 | N59: 0 | O59: =+W59+X59 -> 13 | P59: =+Y59 -> 11 | Q59: Regular | R59: 0 | S59: 2011-01-20 | T59: 1 | U59: 2015-12-31 | W59: =(I59+K59+M59) -> 13 | X59: =TRUNC((J59+L59+N59)/12) -> 0 | Y59: =MOD((J59+L59+N59),12) -> 11 | Z59: =DATEDIF(F59,$B$5,"y")-20 -> 16
A60: 49 | B60: A. M. KHAN | C60: F | D60: CRIPS5113F | E60: Asstt. Professor | F60: 1981-02-21 | G60: M.Tech. | H60: 2013 | I60: 4 | J60: 10 | K60: 8 | L60: 1 | M60: 0 | N60: 0 | O60: =+W60+X60 -> 12 | P60: =+Y60 -> 11 | Q60: Regular | R60: 0 | S60: 2011-02-09 | T60: 1 | U60: 2015-12-31 | W60: =(I60+K60+M60) -> 12 | X60: =TRUNC((J60+L60+N60)/12) -> 0 | Y60: =MOD((J60+L60+N60),12) -> 11 | Z60: =DATEDIF(F60,$B$5,"y")-20 -> 15
A61: 50 | B61: V. J. PAWAR | C61: M | D61: ASDPP7789E | E61: Asstt. Professor | F61: 1984-03-11 | G61: M.Tech. | H61: 2014 | I61: 5 | J61: 0 | K61: 1 | L61: 4 | M61: 2 | N61: 0 | O61: =+W61+X61 -> 8 | P61: =+Y61 -> 4 | Q61: Regular | R61: 0 | S61: 2011-01-07 | T61: 1 | U61: 2015-12-31 | W61: =(I61+K61+M61) -> 8 | X61: =TRUNC((J61+L61+N61)/12) -> 0 | Y61: =MOD((J61+L61+N61),12) -> 4 | Z61: =DATEDIF(F61,$B$5,"y")-20 -> 12
A62: 51 | B62: V. A. INJAMURI | C62: F | D62: ABPQI7798E | E62: Asstt. Professor | F62: 1983-10-25 | G62: M.Tech. | H62: 2015 | I62: 1 | J62: 1 | K62: 5 | L62: 0 | M62: 0 | N62: 0 | O62: =+W62+X62 -> 6 | P62: =+Y62 -> 1 | Q62: Regular | R62: 0 | S62: 2009-11-03 | T62: 1 | U62: 2015-12-31 | W62: =(I62+K62+M62) -> 6 | X62: =TRUNC((J62+L62+N62)/12) -> 0 | Y62: =MOD((J62+L62+N62),12) -> 1 | Z62: =DATEDIF(F62,$B$5,"y")-20 -> 12
A63: 52 | B63: P.D. PATHAK | C63: M | D63: AVQPP5256M | E63: Asstt. Professor | F63: 1986-07-26 | G63: M.Tech. | H63: 2013 | I63: 6 | J63: 0 | K63: 0 | L63: 0 | M63: 2 | N63: 0 | O63: =+W63+X63 -> 8 | P63: =+Y63 -> 0 | Q63: Regular | R63: 0 | S63: 2009-11-07 | T63: 1 | U63: 2015-12-31 | W63: =(I63+K63+M63) -> 8 | X63: =TRUNC((J63+L63+N63)/12) -> 0 | Y63: =MOD((J63+L63+N63),12) -> 0 | Z63: =DATEDIF(F63,$B$5,"y")-20 -> 10
A64: 53 | B64: VIVEK KSHIRSAGAR | C64: M | D64: ACOPK9154B | E64: Asstt. Professor | F64: 1972-05-17 | G64: M.Tech. | H64: 2001 | I64: 15 | J64: 10 | K64: 0 | L64: 0 | M64: 0 | N64: 0 | O64: =+W64+X64 -> 15 | P64: =+Y64 -> 10 | Q64: Regular | R64: 0 | S64: 2001-11-21 | T64: 1 | U64: 2015-12-31 | W64: =(I64+K64+M64) -> 15 | X64: =TRUNC((J64+L64+N64)/12) -> 0 | Y64: =MOD((J64+L64+N64),12) -> 10 | Z64: =DATEDIF(F64,$B$5,"y")-20 -> 24
A65: 54 | B65: A.K.GULVE | C65: M | D65: ABHPG2570M | E65: Asstt. Professor | F65: 1971-05-14 | G65: M.Tech. | H65: 1998 | I65: 22 | J65: 0 | K65: 0 | L65: 0 | M65: 0 | N65: 0 | O65: =+W65+X65 -> 22 | P65: =+Y65 -> 0 | Q65: Regular | R65: 0 | S65: 2000-02-23 | T65: 1 | U65: 2015-12-31 | W65: =(I65+K65+M65) -> 22 | X65: =TRUNC((J65+L65+N65)/12) -> 0 | Y65: =MOD((J65+L65+N65),12) -> 0 | Z65: =DATEDIF(F65,$B$5,"y")-20 -> 25
A66: 55 | B66: S.D.SAPKAL | C66: F | D66: AVFPS2106K | E66: Asstt. Professor | F66: 1975-01-01 | G66: M.Tech. | H66: 2005 | I66: 15 | J66: 10 | K66: 0 | L66: 0 | M66: 0 | N66: 0 | O66: =+W66+X66 -> 15 | P66: =+Y66 -> 10 | Q66: Regular | R66: 0 | S66: 2000-02-14 | T66: 1 | U66: 2015-12-31 | W66: =(I66+K66+M66) -> 15 | X66: =TRUNC((J66+L66+N66)/12) -> 0 | Y66: =MOD((J66+L66+N66),12) -> 10 | Z66: =DATEDIF(F66,$B$5,"y")-20 -> 21
A67: 56 | B67: Thosar Archana Gopal | C67: F | D67: AAIPT3503B | E67: Associate Professor | F67: 1971-09-22 | G67: PhD | H67: 2009 | I67: 19 | J67: 6 | K67: 0 | L67: 0 | M67: 0 | N67: 0 | O67: =+W67+X67 -> 19 | P67: =+Y67 -> 6 | Q67: Regular | R67: 0 | S67: 2005-06-25 | T67: 1 | U67: 2015-12-31 | W67: =(I67+K67+M67) -> 19 | X67: =TRUNC((J67+L67+N67)/12) -> 0 | Y67: =MOD((J67+L67+N67),12) -> 6 | Z67: =DATEDIF(F67,$B$5,"y")-20 -> 25
A68: 57 | B68: Bhole Anita Arun | C68: F | D68: AAYPB1775D | E68: Associate Professor | F68: 1966-01-29 | G68: M.Tech. | H68: 1991 | I68: 26 | J68: 0 | K68: 0 | L68: 0 | M68: 1 | N68: 6 | O68: =+W68+X68 -> 27 | P68: =+Y68 -> 6 | Q68: Regular | R68: 0 | S68: 2000-11-07 | T68: 1 | U68: 2015-12-31 | W68: =(I68+K68+M68) -> 27 | X68: =TRUNC((J68+L68+N68)/12) -> 0 | Y68: =MOD((J68+L68+N68),12) -> 6 | Z68: =DATEDIF(F68,$B$5,"y")-20 -> 30
A69: 58 | B69: Dhamse Sanjay sadashivrao | C69: M | D69: ABGPD7514D | E69: Associate Professor | F69: 1964-08-24 | G69: M.Tech. | H69: 1997 | I69: 28 | J69: 0 | K69: 0 | L69: 0 | M69: 0 | N69: 0 | O69: =+W69+X69 -> 28 | P69: =+Y69 -> 0 | Q69: Regular | R69: 0 | S69: 1992-12-24 | T69: 1 | U69: 2015-12-31 | W69: =(I69+K69+M69) -> 28 | X69: =TRUNC((J69+L69+N69)/12) -> 0 | Y69: =MOD((J69+L69+N69),12) -> 0 | Z69: =DATEDIF(F69,$B$5,"y")-20 -> 32
A70: 59 | B70: Kulkarni Vandana Abhay | C70: F | D70: AAUPD1546N | E70: Associate Professor | F70: 1964-12-28 | G70: PhD | H70: 2009 | I70: 23 | J70: 0 | K70: 0 | L70: 0 | M70: 3 | N70: 0 | O70: =+W70+X70 -> 26 | P70: =+Y70 -> 0 | Q70: Regular | R70: 0 | S70: 1998-09-03 | T70: 1 | U70: 2015-12-31 | W70: =(I70+K70+M70) -> 26 | X70: =TRUNC((J70+L70+N70)/12) -> 0 | Y70: =MOD((J70+L70+N70),12) -> 0 | Z70: =DATEDIF(F70,$B$5,"y")-20 -> 31
A71: 60 | B71: Bhasme Nitin Ramesh | C71: M | D71: AAYPB1766G | E71: Associate Professor | F71: 1971-05-30 | G71: PhD | H71: 2013 | I71: 21 | J71: 0 | K71: 0 | L71: 0 | M71: 0 | N71: 0 | O71: =+W71+X71 -> 21 | P71: =+Y71 -> 0 | Q71: Regular | R71: 0 | S71: 1998-09-01 | T71: 1 | U71: 2015-12-31 | W71: =(I71+K71+M71) -> 21 | X71: =TRUNC((J71+L71+N71)/12) -> 0 | Y71: =MOD((J71+L71+N71),12) -> 0 | Z71: =DATEDIF(F71,$B$5,"y")-20 -> 25
A72: 61 | B72: Shinde Sanjay Madanrao | C72: M | D72: AWYPS1546B | E72: Associate Professor | F72: 1966-07-18 | G72: M.Tech. | H72: 1998 | I72: 25 | J72: 0 | K72: 0 | L72: 0 | M72: 0 | N72: 0 | O72: =+W72+X72 -> 25 | P72: =+Y72 -> 0 | Q72: Regular | R72: 0 | S72: 2002-04-30 | T72: 1 | U72: 2015-12-31 | W72: =(I72+K72+M72) -> 25 | X72: =TRUNC((J72+L72+N72)/12) -> 0 | Y72: =MOD((J72+L72+N72),12) -> 0 | Z72: =DATEDIF(F72,$B$5,"y")-20 -> 30
A73: 62 | B73: Bachawad Manjusha Rajesh | C73: F | D73: AAYPC3001F | E73: Associate Professor | F73: 1970-05-13 | G73: M.Tech. | H73: 2001 | I73: 21 | J73: 0 | K73: 0 | L73: 0 | M73: 0 | N73: 0 | O73: =+W73+X73 -> 21 | P73: =+Y73 -> 0 | Q73: Regular | R73: 0 | S73: 2003-12-12 | T73: 1 | U73: 2015-12-31 | W73: =(I73+K73+M73) -> 21 | X73: =TRUNC((J73+L73+N73)/12) -> 0 | Y73: =MOD((J73+L73+N73),12) -> 0 | Z73: =DATEDIF(F73,$B$5,"y")-20 -> 26
A74: 63 | B74: Dhote Vyanktesh Panchkumar | C74: M | D74: AICPD0805C | E74: Asstt. Professor | F74: 1977-05-16 | G74: M.Tech. | H74: 2003 | I74: 16 | J74: 0 | K74: 0 | L74: 0 | M74: 0 | N74: 0 | O74: =+W74+X74 -> 16 | P74: =+Y74 -> 0 | Q74: Regular | R74: 0 | S74: 2010-08-27 | T74: 1 | U74: 2015-12-31 | W74: =(I74+K74+M74) -> 16 | X74: =TRUNC((J74+L74+N74)/12) -> 0 | Y74: =MOD((J74+L74+N74),12) -> 0 | Z74: =DATEDIF(F74,$B$5,"y")-20 -> 19
A75: 64 | B75: Swami Panchayya Shankaryya | C75: M | D75: ACVPS2693A | E75: Associate Professor | F75: 1966-06-10 | G75: M.Tech. | H75: 1999 | I75: 21 | J75: 0 | K75: 0 | L75: 0 | M75: 0 | N75: 0 | O75: =+W75+X75 -> 21 | P75: =+Y75 -> 0 | Q75: Regular | R75: 0 | S75: 2008-07-08 | T75: 1 | U75: 2015-12-31 | W75: =(I75+K75+M75) -> 21 | X75: =TRUNC((J75+L75+N75)/12) -> 0 | Y75: =MOD((J75+L75+N75),12) -> 0 | Z75: =DATEDIF(F75,$B$5,"y")-20 -> 30
A76: 65 | B76: Mopari Shrikant S. | C76: M | D76: APZPN3887R | E76: Asstt. Professor | F76: 1977-02-24 | G76: M.Tech. | H76: 2005 | I76: 13 | J76: 0 | K76: 0 | L76: 0 | M76: 1 | N76: 0 | O76: =+W76+X76 -> 14 | P76: =+Y76 -> 0 | Q76: Regular | R76: 0 | S76: 2010-08-27 | T76: 1 | U76: 2015-12-31 | W76: =(I76+K76+M76) -> 14 | X76: =TRUNC((J76+L76+N76)/12) -> 0 | Y76: =MOD((J76+L76+N76),12) -> 0 | Z76: =DATEDIF(F76,$B$5,"y")-20 -> 19
A77: 66 | B77: Murnal Pranesh Bhimrao | C77: M | D77: AFDPM1634C | E77: Professor | F77: 1961-07-15 | G77: PhD | H77: 2000 | I77: 31 | J77: 0 | K77: 0 | L77: 0 | M77: 0 | N77: 0 | O77: =+W77+X77 -> 31 | P77: =+Y77 -> 0 | Q77: Regular | R77: 0 | S77: 2011-05-11 | T77: 1 | U77: 2015-12-31 | W77: =(I77+K77+M77) -> 31 | X77: =TRUNC((J77+L77+N77)/12) -> 0 | Y77: =MOD((J77+L77+N77),12) -> 0 | Z77: =DATEDIF(F77,$B$5,"y")-20 -> 35
A78: 67 | B78: Londhe Rajabhao Subarao | C78: M | D78: AAHPL2348M | E78: Associate Professor | F78: 1965-05-16 | G78: PhD | H78: 2008 | I78: 23 | J78: 0 | K78: 0 | L78: 0 | M78: 6 | N78: 0 | O78: =+W78+X78 -> 29 | P78: =+Y78 -> 0 | Q78: Regular | R78: 0 | S78: 2006-09-26 | T78: 1 | U78: 2015-12-31 | W78: =(I78+K78+M78) -> 29 | X78: =TRUNC((J78+L78+N78)/12) -> 0 | Y78: =MOD((J78+L78+N78),12) -> 0 | Z78: =DATEDIF(F78,$B$5,"y")-20 -> 31
A79: 68 | B79: Deshmukh Satish Narayanrao | C79: M | D79: AMTPD8141L | E79: Associate Professor | F79: 1965-08-06 | G79: M.Tech. | H79: 1991 | I79: 24 | J79: 4 | K79: 0 | L79: 0 | M79: 0 | N79: 0 | O79: =+W79+X79 -> 24 | P79: =+Y79 -> 4 | Q79: Regular | R79: 0 | S79: 2008-07-20 | T79: 1 | U79: 2015-12-31 | W79: =(I79+K79+M79) -> 24 | X79: =TRUNC((J79+L79+N79)/12) -> 0 | Y79: =MOD((J79+L79+N79),12) -> 4 | Z79: =DATEDIF(F79,$B$5,"y")-20 -> 31
A80: 69 | B80: Shaikh Mohummad Gulab | C80: M | D80: ACVPS8793D | E80: Associate Professor | F80: 1965-11-03 | G80: PhD | H80: 2006 | I80: 25 | J80: 4 | K80: 0 | L80: 0 | M80: 0 | N80: 0 | O80: =+W80+X80 -> 25 | P80: =+Y80 -> 4 | Q80: Regular | R80: 0 | S80: 2007-06-15 | T80: 1 | U80: 2015-12-31 | W80: =(I80+K80+M80) -> 25 | X80: =TRUNC((J80+L80+N80)/12) -> 0 | Y80: =MOD((J80+L80+N80),12) -> 4 | Z80: =DATEDIF(F80,$B$5,"y")-20 -> 30
A81: 70 | B81: Bhalchandra Surekha Anil | C81: F | D81: AHEPB2924M | E81: Associate Professor | F81: 1964-06-06 | G81: PhD | H81: 2001 | I81: 27 | J81: 3 | K81: 0 | L81: 0 | M81: 2 | N81: 0 | O81: =+W81+X81 -> 29 | P81: =+Y81 -> 3 | Q81: Regular | R81: 0 | S81: 2003-11-02 | T81: 1 | U81: 2015-12-31 | W81: =(I81+K81+M81) -> 29 | X81: =TRUNC((J81+L81+N81)/12) -> 0 | Y81: =MOD((J81+L81+N81),12) -> 3 | Z81: =DATEDIF(F81,$B$5,"y")-20 -> 32
A82: 71 | B82: Verma Mahavir Balmukund | C82: M | D82: AAQPV5461Q | E82: Associate Professor | F82: 1959-07-02 | G82: PhD | H82: 2013 | I82: 28 | J82: 5 | K82: 2 | L82: 0 | M82: 4 | N82: 8 | O82: =+W82+X82 -> 35 | P82: =+Y82 -> 1 | Q82: Regular | R82: 0 | S82: 1987-04-28 | T82: 1 | U82: 2015-12-31 | W82: =(I82+K82+M82) -> 34 | X82: =TRUNC((J82+L82+N82)/12) -> 1 | Y82: =MOD((J82+L82+N82),12) -> 1 | Z82: =DATEDIF(F82,$B$5,"y")-20 -> 37
A83: 72 | B83: Ghorade Ishwar Baburao | C83: M | D83: ATFPG0710R | E83: Asstt. Professor | F83: 1983-09-05 | G83: PhD | H83: 2014 | I83: 0 | J83: 0 | K83: 7 | L83: 0 | M83: 0 | N83: 0 | O83: =+W83+X83 -> 7 | P83: =+Y83 -> 0 | Q83: Contractual | R83: 2 | S83: 2014-07-01 | T83: 1 | U83: 2015-12-31 | W83: =(I83+K83+M83) -> 7 | X83: =TRUNC((J83+L83+N83)/12) -> 0 | Y83: =MOD((J83+L83+N83),12) -> 0 | Z83: =DATEDIF(F83,$B$5,"y")-20 -> 13

Sheet IPR
A4: Sr. No. | B4: Year | C4: Patents - Filed | D4: Patents - Granted | E4: Patents - Licensed | F4: Patents - Collaborative patents | G4: Designs - Filed | H4: Designs - Granted | I4: Earning from Patents etc for last 3 financial year (2.c) - Year | J4: Earning from Patents etc for last 3 financial year (2.c) - Amount (Rs. In Lakhs)
B5: Details of Publication, Citations and IPR year-wise for the last 3 years (Calendar Years: 2012, 2013, 2014)
C6: Details of Publications of the Institute (2.a)
B8: 1 | C8: Provide a list of publications for past three calendar years preferably in a standard citation format such as Nature/ IEEE/ APA/ MLA.
B9: 2 | C9: Each publication should include author, complete title of the article or chapter in a book or the book, Volume and issue No.( in case of journal article), page nos. (starting page - ending page in case of journals article and chapters in books and total no. of pages in case of books), year of publication, ISSN No. in case of journals and ISBN no. in case of books.
B10: 3 | C10: First provide list of articles published in national and international journals, followed by chapters in books/ published conference proceedings and list of books for past three calendar years.
A13: Sl. No. | B13: IPR (Details for Last 3 years) (2.c) | I13: Earning from Patents etc for last 3 financial years (2.c)
B15: Year | C15: Patents | G15: Designs
C16: Filed | D16: Granted | E16: Licensed | F16: Collaborative patents | G16: Filed | H16: Granted | I16: Year | J16: Amount (Rs. In Lakhs)
A17: [1] | B17: [2] | C17: [3] | D17: [4] | E17: [5] | F17: [6] | G17: [7] | H17: [8] | I17: [9] | J17: [10]
A18: Input Type=> | B18: YYYY | C18: numeric only | D18: numeric only | E18: numeric only | F18: numeric only | G18: numeric only | H18: numeric only | I18: Financial year in format 2014-15, 2013-14, 2012-13 | J18: numeric only upto 2 decimal
A19: 1 | B19: 2014 | C19: 2 | D19: 0 | E19: 0 | F19: 0 | G19: 0 | H19: 2 | I19: 2014-15 | J19: 0
A20: 2 | B20: 2013 | C20: 2 | D20: 0 | E20: 0 | F20: 0 | G20: 0 | H20: 2 | I20: 2013-14 | J20: 0
A21: 3 | B21: 2012 | C21: 1 | D21: 1 | E21: 1 | F21: 1 | G21: 0 | H21: 0 | I21: 2012-13 | J21: 0
B24: Notes on "IPR"
B25: Col: 3-8 | C25: Put only numeric value for no. of patents and design. Col-6 denotes total no. of patents in collaborations with other institutions.
B26: Col: 9-10 | C26: Total earnings from patents etc. in respective financial year.

Sheet Sponsored Research
A4: Details of Sponsored Research year-wise for the last 3 years (Financial Years: 2012-13, 2013-14, 2014-15)
A5: Sr. No. | B5: Year | C5: Title of Project | D5: Funding Agency | E5: Amount
A7: =COUNT(A13:A9933) -> 8 | B7: Sponsored Research (2.e)
A9: Sr. No. | B9: Year | C9: Title of Project | D9: Funding Agency | E9: Amount (Rs. In Lakhs) (amount actually received in corresponding year)
A11: [1] | B11: [2] | C11: [3] | D11: [4] | E11: [5]
B12: Financial year in format 2014-15, 2013-14, 2012-13 | E12: numeric only upto 2 decimal
A13: =+A12+1 -> 1 | B13: 2014-2015 | C13: Detecting buried object using ground penetrating radar (GPR) data | D13: DRDO, Pune | E13: 7.5
A14: =+A13+1 -> 2 | B14: 2014-2015 | C14: “Calibration and influence of uncertainty analysis of hydrological | D14: Seed Grant, TEQIP-II, Govt. College of Engineering Aurangabad | E14: 3
A15: 3 | B15: 2014-2015 | C15: “Evaluation of shape characteristics of coarse aggregates | D15: Seed Grant, TEQIP-II, Govt. College of Engineering Aurangabad | E15: 1.43
A16: 4 | B16: 2014-2015 | C16: Ductile behavior of RCC Columns using Ferromesh | D16: Seed Grant, TEQIP-II, Govt. College of Engineering Aurangabad | E16: 1.8
A17: 5 | B17: 2014-2015 | C17: Fracture Mechanics of Fiber Reinforced Concrete” | D17: Seed Grant, TEQIP-II, Govt. College of Engineering Aurangabad | E17: 1.45
A18: 6 | B18: 2013-2014 | C18: Suitability and Modification of subgrade soil of flexible pavement | D18: NRRDA, New Delhi | E18: 2.86
A19: 7 | B19: 2013-2014 | C19: Use of waste plastic in bitumen and bitumen mixes | D19: NRRDA, New Delhi | E19: 1.755
A20: 8 | B20: 2012-2013 | C20: Purification of Water by Herbal Extract (F.No. 41-192/2012 | D20: Major Research Project, UGC, New Delhi | E20: 4.95

Sheet Consultancy
A4: Details of Consultancy year-wise for the last 3 years (Financial Years: 2012-13, 2013-14, 2014-15)
A6: Sr. No. | B6: Year | C6: Title of Project | D6: Funding Agency | E6: Amount
A8: =COUNT(A14:A9883) -> 77 | B8: Consultancy (2.e)
A10: Sr. No. | B10: Year | C10: Title of Consultancy Project | D10: Funding Agency | E10: Amount (Rs. In Lakhs) (amount actually received in corresponding year)
A12: [1] | B12: [2] | C12: [3] | D12: [4] | E12: [5]
B13: Financial year in format 2014-15, 2013-14, 2012-13 | E13: numeric only upto 2 decimal
A14: =+A13+1 -> 1 | B14: 2012-2013 | C14: Road work | D14: City M.C. Parbhani | E14: 0.27/-
A15: =+A14+1 -> 2 | B15: 2012-2013 | C15: Road work | D15: City M.C. Parbhani | E15: 0.25/-
A16: 3 | B16: 2012-2013 | C16: Building work | D16: Sarpanch Pathri | E16: 0.02/-
A17: 4 | B17: 2012-2013 | C17: Road work | D17: E. E. MIDC, A,bad | E17: 0.25/-
A18: 5 | B18: 2012-2013 | C18: Design of Mixes | D18: E. E. CIDCO, A,bad | E18: 0.54/-
A19: 6 | B19: 2012-2013 | C19: Road work | D19: City Engr. M.C. A,bad | E19: 0.28/-
A20: 7 | B20: 2012-2013 | C20: Soil Investigations | D20: Manisha Infrastructure, Aurangabad | E20: 6.02/-
A21: 8 | B21: 2013-2014 | C21: School Building Construction | D21: MPSP, Mumbai for Aurangabad District | E21: 38.00/-
A22: 9 | B22: 2013-2014 | C22: Soil Investigations | D22: Various Department | E22: 0.64/-
A23: 10 | B23: 2014-2015 | C23: School Building Construction | D23: MPSP, Mumbai for Dhule District | E23: 12.35/-
A24: 11 | B24: 2014-2015 | C24: Scrutiny of Proposal Nala Diversion | D24: imaGIS Engineering Solution Pvt. Ltd, Nagpur | E24: 0.03/-
A25: 12 | B25: 2014-2015 | C25: Building works | D25: Hindustan Composite Ltd, Paithan | E25: 0.39/-
A26: 13 | B26: 2014-2015 | C26: Scrutiny of Proposal of road | D26: Executive Engineer NH Nanded | E26: 0.05/-
A27: 14 | B27: 2014-2015 | C27: Scrutiny of Road Proposal | D27: PCMC, Parbhani (Creation Engineers) | E27: 0.29/-
A28: 15 | B28: 2014-2015 | C28: Road works | D28: P.C.M.C. Parbhani | E28: 1.60/-
A29: 16 | B29: 2014-2015 | C29: Road works | D29: N. P. Khultabad | E29: 0.33/-
A30: 17 | B30: 2014-2015 | C30: Soil Investigations | D30: Various Department | E30: 0.97/-
A31: 18 | B31: 2014-2015 | C31: Completion Certificate for self development works at group housing scheme | D31: The Medows HiLL View Homes Aurangabad | E31: 1.18/-
A32: 19 | B32: 2014-2015 | C32: Completion Certificate for self development works at group housing scheme | D32: The Nagpal Projects & Constructions Pvt. Ltd Aurangabad | E32: 2.94/-
A33: 20 | B33: 2014-2015 | C33: Completion Certificate for self development works at group housing scheme | D33: The R. N. Developers Aurangabad | E33: 0.58/-
A34: 21 | B34: 2014-2015 | C34: CCTV testing | D34: Smart City, Aurangabad Muncipal carporation | E34: 0.29244
A35: 22 | B35: 2014-2015 | C35: CCTV Surveillance | D35: Govt. Dental College, Aurangabad | E35: 0.07
A36: 23 | B36: 2013-2014 | C36: EPBAX System | D36: Land Survey, Aurangabad | E36: 0.07
A37: 24 | B37: 2014-2015 | C37: Paithan-Apegaon Vikas Pradhikaran | D37: Government of Maharashtra | E37: 0.5
A38: 25 | B38: 2014-2015 | C38: Oil Testing of Transformer | D38: Maharashtra State Road Transport Corporation | E38: 0.06
A39: 26 | B39: 2014-2015 | C39: Street Light Sodium Vapour Lamp Test | D39: Aurangabad Munciple Corporation | E39: 0.18
A40: 27 | B40: 2014-2015 | C40: High Voltage Engineering Practicles | D40: Godavari College of Engineering, Jalgon | E40: 0.32
A41: 28 | B41: 2014-2015 | C41: Testing of Epoxy Cast Insulation | D41: Chaitanya Electromagnets, Aurangabad | E41: 0.03
A42: 29 | B42: 2014-2015 | C42: Street Light Testing | D42: Nagpal Construction Pvt. Ltd. Aurangabad | E42: 0.5
A43: 30 | B43: 2013-2014 | C43: Testing of HV of Cables | D43: Executive Engineering CIDCO, Aurangabad | E43: 0.02
A44: 31 | B44: 2013-2014 | C44: Testing of HV of Cables | D44: Executive Engineering CIDCO, Aurangabad | E44: 0.04
A45: 32 | B45: 2014-2015 | C45: Paithan-Apegaon Vikas Pradhikaran | D45: Government of Maharashtra | E45: 0.5
A46: 33 | B46: 2014-2015 | C46: Oil Testing of Transformer | D46: Maharashtra State Road Transport Corporation | E46: 0.06
A47: =+A46+1 -> 34 | B47: 2014-2015 | C47: Street Light Sodium Vapour Lamp Test | D47: Aurangabad Munciple Corporation | E47: 0.18
A48: 35 | B48: 2012-2013 | C48: Construction of two ESR at Contonment Area | D48: Contonment Board, Aurangabad | E48: =354496/100000 -> 3.54496
A49: 36 | B49: 2012-2013 | C49: Design Scrutiny of raft foundation of KT weir at Lasurgaon | D49: Exe Engineer, Minor Irrigation Div., Aurangabad | E49: =16854/100000 -> 0.16854
A50: 37 | B50: 2012-2013 | C50: Design scrutiny of 5 lac litre ESR at Shendra 5-star MIDC, Aurangabad | D50: Superintending Engineer, MIDC, Aurangabad | E50: =28090/100000 -> 0.2809
A51: 38 | B51: 2012-2013 | C51: Structural audit of district court building, Aurangabad | D51: Superintending Engineer, PWD, Aurangabad | E51: =50000/100000 -> 0.5
A52: 39 | B52: 2012-2013 | C52: Proof checking of 56 quarters of CP, Aurangabad | D52: Rashmin Constructions, Mumbai | E52: =56180/100000 -> 0.5618
A53: =+A52+1 -> 40 | B53: 2012-2013 | C53: NDT of Chief fire-office building, Padampura, Aurangabad | D53: The Dy. Engineer, Roads, Building, Garden & Drainage AMC | E53: =23596/100000 -> 0.23596
A54: 41 | B54: 2013-2014 | C54: NDT of prefabricated units | D54: BG Shirke consultants | E54: =92811/100000 -> 0.92811
A55: 42 | B55: 2013-2014 | C55: Various structures of Paithan Pradhikaran, Paithan | D55: Exe Engineer, MJP, Aurangabad | E55: =56180/100000 -> 0.5618
A56: 43 | B56: 2013-2014 | C56: Strength estimation of new building | D56: SMS Hospitality, Aurangabad | E56: =25281/100000 -> 0.25281
A57: 44 | B57: 2013-2014 | C57: NDT testing | D57: Golden dreams technopark, urangabad | E57: =16854/100000 -> 0.16854
A58: 45 | B58: 2013-2014 | C58: NIELT Girls hostel | D58: Exe Engineer, Dr. BAMU, Aurangabad | E58: =26067/100000 -> 0.26067
A59: 46 | B59: 2013-2014 | C59: Various ESR owned by MIDC in Aurangabad | D59: Exe Engineer, MIDC, Aurangabad | E59: =129214/100000 -> 1.29214
A60: 47 | B60: 2013-2014 | C60: School building at Ambejogai | D60: Ch. Officer, Muncipal Council, Ambejogai | E60: =54528/100000 -> 0.54528
A61: 48 | B61: 2013-2014 | C61: Meeting hall & Chemistry Blg at BAMU Aurangabad | D61: Exe Engineer, Dr. BAMU, Aurangabad | E61: =13067/100000 -> 0.13067
A62: 49 | B62: 2013-2014 | C62: ESR at Jalna | D62: Dy. Engineer, MIDC, Jalna | E62: =77529/100000 -> 0.77529
A63: 50 | B63: 2013-2014 | C63: Testing of building at BAMU, Aurangabad | D63: NG Karkhane, Aurangabad | E63: =77444/100000 -> 0.77444
A64: 51 | B64: 2013-2014 | C64: Water tank at Paithan | D64: Muncipal Council, Paithan | E64: =16854/100000 -> 0.16854
A65: 52 | B65: 2013-2014 | C65: ADCC Bank, Kannad | D65: Bank authorities | E65: =14537/100000 -> 0.14537
A66: 53 | B66: 2013-2014 | C66: Various load bearing structures in MIDC colony, Aurangabad | D66: Exe Engineer, Aurangabad | E66: =168540/100000 -> 1.6854
A67: 54 | B67: 2013-2014 | C67: Yashawantrao Chavan Hostel | D67: Exe Engineer, Dr. BAMU, Aurangabad | E67: =53815/100000 -> 0.53815
A68: 55 | B68: 2013-2014 | C68: School building at Phulambri | D68: School authorities | E68: =10113/100000 -> 0.10113
A69: 56 | B69: 2013-2014 | C69: Dining hall/Lunch home | D69: Exe Engineer, Dr. BAMU, Aurangabad | E69: =65234/100000 -> 0.65234
A70: 57 | B70: 2013-2014 | C70: IPCA Plant, Waluj | D70: Landmark consultants | E70: =77916/100000 -> 0.77916
A71: 58 | B71: 2013-2014 | C71: Commercial building | D71: SP Chavan, Shah Ganj, Aurangabad | E71: =30000/100000 -> 0.3
A72: 59 | B72: 2013-2014 | C72: Structural audit of various Load bearing buildings MIDC colony, Aurangabad | D72: The Deputy Engineer& PA (I), MIDC Civil Division, Aurangabad | E72: =168540/100000 -> 1.6854
A73: 60 | B73: 2013-2014 | C73: Providing supervision & third party inspection of 2-Nos. ESR | D73: Chief Executive Officer Cantonment Board Aurangabad-431002 | E73: =185394/100000 -> 1.85394
A74: 61 | B74: 2014-2015 | C74: NDT Assessment of open RCC gutter in Punandgaon | D74: Asst. Engineer Majalgaon sub. Divi. 4 Beed | E74: =19382/100000 -> 0.19382
A75: 62 | B75: 2014-2015 | C75: NDT Test of RCC ESR at pokhari Ambad | D75: Sub.divisional officer Rural Division Aurangabad. | E75: =10000/100000 -> 0.1
A76: 63 | B76: 2014-2015 | C76: Scrutiny of design & drawing of RCC ESRs | D76: EX. Engineer MJP Aurangabad | E76: =31464/100000 -> 0.31464
A77: 64 | B77: 2014-2015 | C77: Proof checking of RCC design of office bldg at Waluj | D77: GN Chitari En. Con. Solapur | E77: =86400/100000 -> 0.864
A78: 65 | B78: 2014-2015 | C78: Design scrutiny of RCC ESR | D78: Chef Officer Municipal Council Gangapur | E78: =19382/100000 -> 0.19382
A79: 66 | B79: 2014-2015 | C79: Design scrutiny of RCC ESR | D79: Chef Officer Municipal Council Gangapur | E79: =14214/100000 -> 0.14214
A80: 67 | B80: 2014-2015 | C80: Design scrutiny of RCC ESR | D80: Chief Officer Municipal Council Gangapur | E80: =20674/100000 -> 0.20674
A81: 68 | B81: 2014-2015 | C81: Design scrutiny of RCC ESR | D81: N G Karkhane Consuting Engineer & Structural Desginer Aurangabad. | E81: =20000/100000 -> 0.2
A82: 69 | B82: 2014-2015 | C82: Design scrutiny of RCC ESR | D82: Chief Officer Municipal Council Kinwat Nanded | E82: =18090/100000 -> 0.1809
A83: 70 | B83: 2014-2015 | C83: Design scrutiny of RCC ESR | D83: EX. Engineer MIDC Civil Div. Aurangabad | E83: =15506/100000 -> 0.15506
A84: 71 | B84: 2014-2015 | C84: RCC class –III quarters of firemen Waluj | D84: EX. Engineer MIDC Civil Div. Aurangabad | E84: =55614/100000 -> 0.55614
A85: 72 | B85: 2014-2015 | C85: Design scrutiny of RCC ESR | D85: EX. Engineer MIDC Civil Div. Aurangabad | E85: =10337/100000 -> 0.10337
A86: 73 | B86: 2014-2015 | C86: Design scrutiny of RCC ESR | D86: EX. Engineer MIDC Dhule | E86: =10337/100000 -> 0.10337
A87: 74 | B87: 2014-2015 | C87: Design scrutiny of RCC pure water sump WTP Nanded | D87: EX. Engineer MIDC Division Nanded | E87: =19382/100000 -> 0.19382
A88: 75 | B88: 2014-2015 | C88: Structural Audit of flatted bldgs owned by MIDC | D88: Dy. Engineer PA(I) MIDC circle office Aurangabad | E88: =100000/100000 -> 1
A89: 76 | B89: 2014-2015 | C89: Proof checking of major bridge across bindusara river | D89: Chief Engineer MSRDC Ltd aurangabad | E89: =478654/100000 -> 4.78654
A90: 77 | B90: 2014-2015 | C90: Scrutiny of design & drg. Of Girls hostel of Osmanabad | D90: Ex. Engineer DR.BAMU Aurangabad | E90: =43974/100000 -> 0.43974

Sheet Education Program
A4: Details of Continuing Education Program for the last 3 years (Academic Years: 2012-13, 2013-14, 2014-15)
A6: Sr. No. | B6: Year | C6: Name of Prog | D6: No of Participants to whom certificate issued | E6: No of Days
A8: =COUNT(A14:A961) -> 4 | C8: Continuing Education Programs Imparted (not less than 6 days duration) held in last 3 years (4.a)
A10: Sr. No. | B10: Year | C10: Name of program | D10: No of Participants to whom certificate issued | E10: No of Days
A12: [1] | B12: [2] | C12: [3] | D12: [4] | E12: [5]
B13: Academic year in format 2014-15, 2013-14, 2012-13 | E13: numeric only
A14: =+A13+1 -> 1 | B14: 2013-2014 | C14: Certificate Course in Signal and Image Processing | D14: 27 | E14: 7
A15: 2 | B15: 2012-2013 | C15: Engineering Optimization Techniques and Its Application in Research EATOR -2012 | D15: 50 | E15: 12
A16: 3 | B16: 2012-2013 | C16: Certificate Course in Signal and Image Processing | D16: 31 | E16: 7
A17: 4 | B17: 2012-2013 | C17: Certificate Course in Signal and Image Processing | D17: 8 | E17: 7

Sheet Students
A5: Year | B5: Leave of Programme | C5: Approved Intake | D5: Actual intake (1.a & 4.b) - No. of Students admitted in 1st year - Within State | E5: Actual intake (1.a & 4.b) - No. of Students admitted in 1st year - Outside State | F5: Actual intake (1.a & 4.b) - No. of Students admitted in 1st year - Outside Country | G5: Actual intake (1.a & 4.b) - Lateral Entry in 2nd Year for UG Program only - Within State | H5: Actual intake (1.a & 4.b) - Lateral Entry in 2nd Year for UG Program only - Outside State | I5: Actual intake (1.a & 4.b) - Lateral Entry in 2nd Year for UG Program only - Outside Country | J5: Total No. of Students in all 4 years for UG programs and 2 years in PG programs and all Ph.D. Students (4.c) - Male | K5: Total No. of Students in all 4 years for UG programs and 2 years in PG programs and all Ph.D. Students (4.c) - Female | L5: Total No. of Students in all 4 years for UG programs and 2 years in PG programs and all Ph.D. Students (4.c) - Total | M5: No. of Students in Special Categories (4.b) - Economically Backward | Q5: No. of Students in Special Categories (4.b) - Socially isadvantaged (SC, ST & OBC) | R5: No. of Students in Special Categories (4.b) - Physically Challenged | S5: Performance in University Examination (3.a) (No. of Students graduating in time) - No. of Studetns Admitted in 1 year; as per batch | T5: Performance in University Examination (3.a) (No. of Students graduating in time) - Lateral Entry as per batch | U5: Performance in University Examination (3.a) (No. of Students graduating in time) - No. of Students Graduating in Minimum Time | V5: Performance in Public Examinations (3.a) - UPSC Examinations | W5: Performance in Public Examinations (3.a) - State Govt. Examination | X5: Performance in Public Examinations (3.a) - GATE | Y5: Performance in Public Examinations (3.a) - CAT | Z5: Performance in Public Examinations (3.a) - Other (Please Specify) | AA5: Placement in Company/ Government Organisations through Campus Placement in Previous Year (3.b and 3.c) - No. of students | AB5: Placement in Company/ Government Organisations through Campus Placement in Previous Year (3.b and 3.c) - Minimum Salary | AC5: Placement in Company/ Government Organisations through Campus Placement in Previous Year (3.b and 3.c) - Maximum Salary | AD5: Placement in Company/ Government Organisations through Campus Placement in Previous Year (3.b and 3.c) - Average Salary | AE5: Students Opting for Higher Studies (3.b) - No. of Admissions - With Examination | AF5: Students Opting for Higher Studies (3.b) - No. of Admissions - Without Examination | AG5: Entrepreneurship in Engg. & Tech. (include only students started entrepreneurship in the field of study) (3.b) - No. of Student started entrepreneurship in last 10 year | AH5: Entrepreneurship in Engg. & Tech. (include only students started entrepreneurship in the field of study) (3.b) - No. of Student passed out in last 10 years | AI5: dgfs
A6: Students Details Year-wise for the Last 3 Academic Years
A8: Year | B8: Level of Programme | C8: Approved Intake | D8: Actual Intake (1.a & 4.b) | J8: Total No. of Students in all 4 years for UG programs and 2 years in PG programs and all Ph.D. Students (4.c) | M8: No. of Students in Special Categories (4.b) | S8: Performance in University Examination (3.a) (No. of Students graduating in minimum time) | V8: Performance in Public Examinations (3.a) | AA8: Placement in Company/ Government Organisations through Campus Placement in Previous Year (3.b and 3.c) | AE8: Students Opting for Higher Studies (3.b) | AG8: Entrepreneurship in Engg. & Tech. (include only students started entrepreneurship in the field of study) (3.b)
D9: No. of Students admitted in 1st year | G9: Lateral Entry in 2nd year for UG program only | J9: Male | K9: Female | L9: Total | M9: Economically Backward | N9: Socially Disadvantaged | O9: Socially Disadvantaged | P9: Socially Disadvantaged | Q9: Socially Disadvantaged (SC, ST & OBC) Total | R9: Physically Challenged | S9: No. of Students Admitted in 1 year; as per batch | T9: Lateral Entry as per batch | U9: No. of Students Graduating in Minimum Time | V9: UPSC Examinations | W9: State Govt. Examination | X9: GATE | Y9: CAT | Z9: Others (Please Specify) | AA9: No. of the Students | AB9: Minimum Salary | AC9: Maximum Salary | AD9: Average Salary | AE9: No. of Admissions | AG9: No. of Student started entrepreneurship in last 10 years | AH9: Number of Students passed out in last 10 years
D10: Within State | E10: Outside State | F10: Outside Country | G10: Within State | H10: Outside State | I10: Outside Country | N10: SC | O10: ST | P10: OBC | AE10: with Examination | AF10: without Examination
A11: [1] | B11: [2] | C11: [3] | D11: [4] | E11: [5] | F11: [6] | G11: [7] | H11: [8] | I11: [9] | J11: [10] | K11: [11] | L11: [12] | M11: [13] | N11: [14] | O11: [15] | P11: [16] | Q11: [17] | R11: [18] | S11: [19] | T11: [20] | U11: [21] | V11: [22] | W11: [23] | X11: [24] | Y11: [25] | Z11: [26] | AA11: [27] | AB11: [28] | AC11: [29] | AD11: [30] | AE11: [31] | AF11: [32] | AG11: [33] | AH11: [34]
C12: numeric only | D12: numeric only | E12: numeric only | F12: numeric only | G12: numeric only | H12: numeric only | I12: numeric only | J12: numeric only | K12: numeric only | L12: numeric only (computed automatically) | M12: numeric only | N12: numeric only | O12: numeric only | P12: numeric only | Q12: numeric only | R12: numeric only | S12: numeric only | T12: numeric only | U12: numeric only | V12: numeric only | W12: numeric only | X12: numeric only | Y12: numeric only | Z12: numeric only | AA12: numeric only | AB12: numeric only | AC12: numeric only | AD12: numeric only | AE12: numeric only | AF12: numeric only | AG12: numeric only | AH12: numeric only
A13: 2014-15 | B13: UG | C13: 454 | D13: 378 | E13: 3 | F13: 0 | G13: 73 | H13: 0 | I13: 0 | J13: 1027 | K13: 648 | L13: =+J13+K13 -> 1675 | M13: 290 | N13: 211 | O13: 99 | P13: 398 | Q13: =(SUM(N13:P13)) -> 708 | R13: 11 | S13: 381 | T13: 73 | U13: 412 | V13: 0 | W13: 4 | X13: 66 | Y13: 2 | Z13: 3 | AA13: 247 | AB13: 300000 | AC13: 650000 | AD13: 400000 | AE13: 14 | AF13: 0 | AG13: 14 | AH13: 4250
A14: 2014-15 | B14: PG | C14: 186 | D14: 186 | E14: 0 | F14: 0 | G14: 0 | H14: 0 | I14: 0 | J14: 220 | K14: 71 | L14: =+J14+K14 -> 291 | M14: 0 | N14: 37 | O14: 5 | P14: 64 | Q14: =(SUM(N14:P14)) -> 106 | R14: 0 | S14: 126 | T14: 0 | U14: 119
A15: 2014-15 | B15: PG-Int | C15: 0 | D15: 0 | E15: 0 | F15: 0 | G15: 0 | H15: 0 | I15: 0 | J15: 0 | K15: 0 | L15: 0 | M15: 0 | N15: 0 | O15: 0 | P15: 0 | Q15: 0 | R15: 0 | S15: 0 | T15: 0 | U15: 0
A16: 2014-15 | B16: Ph.D. | C16: 10 | D16: 10 | E16: 0 | F16: 0 | G16: 0 | H16: 0 | I16: 0 | J16: 6 | K16: 4 | L16: 10 | M16: 0 | N16: 2 | O16: 0 | P16: 2 | Q16: 4 | R16: 0 | S16: 10 | T16: 0 | U16: 7
A17: 2013-14 | B17: UG | C17: 451 | D17: 378 | E17: 0 | F17: 0 | G17: 73 | H17: 0 | I17: 0 | J17: 1075 | K17: 661 | L17: 1736 | M17: 325 | N17: 189 | O17: 75 | P17: 309 | Q17: 573 | R17: 10 | S17: 378 | T17: 73 | U17: 403 | V17: 0 | W17: 9 | X17: 55 | Y17: 5 | Z17: 3 | AA17: 201 | AB17: 300000 | AC17: 1050000 | AD17: 400000 | AE17: 25 | AF17: 0
A18: 2013-14 | B18: PG | C18: 198 | D18: 186 | E18: 0 | F18: 0 | G18: 12 | H18: 0 | I18: 0 | J18: 246 | K18: 80 | L18: 326 | M18: 0 | N18: 51 | O18: 4 | P18: 54 | Q18: 109 | R18: 0 | S18: 126 | T18: 0 | U18: 90
A19: 2013-14 | B19: PG-Int | C19: 0 | D19: 0 | E19: 0 | F19: 0 | G19: 0 | H19: 0 | I19: 0 | J19: 0 | K19: 0 | L19: 0 | M19: 0 | N19: 0 | O19: 0 | P19: 0 | Q19: 0 | R19: 0 | S19: 0 | T19: 0 | U19: 0
A20: 2013-14 | B20: Ph.D. | C20: 15 | D20: 15 | E20: 0 | F20: 0 | G20: 0 | H20: 0 | I20: 0 | J20: 8 | K20: 7 | L20: 15 | M20: 0 | N20: 2 | O20: 0 | P20: 5 | Q20: 7 | R20: 0 | S20: 15 | T20: 0 | U20: 12
A21: 2012-13 | B21: UG | C21: 452 | D21: 378 | E21: 0 | F21: 0 | G21: 74 | H21: 0 | I21: 0 | J21: 1087 | K21: 660 | L21: 1747 | M21: 326 | N21: 190 | O21: 50 | P21: 489 | Q21: 729 | R21: 11 | S21: 378 | T21: 74 | U21: 408 | V21: 3 | W21: 23 | X21: 56 | Y21: 1 | Z21: 4 | AA21: 232 | AB21: 300000 | AC21: 1250000 | AD21: 350000 | AE21: 36 | AF21: 1
A22: 2012-13 | B22: PG | C22: 186 | D22: 186 | E22: 0 | F22: 0 | G22: 0 | H22: 0 | I22: 0 | J22: 186 | K22: 107 | L22: 293 | M22: 0 | N22: 22 | O22: 0 | P22: 24 | Q22: 46 | R22: 0 | S22: 126 | T22: 0 | U22: 86
A23: 2012-13 | B23: PG-Int | C23: 0 | D23: 0 | E23: 0 | F23: 0 | G23: 0 | H23: 0 | I23: 0 | J23: 0 | K23: 0 | L23: 0 | M23: 0 | N23: 0 | O23: 0 | P23: 0 | Q23: 0 | R23: 0 | S23: 0 | T23: 0 | U23: 0
A24: 2012-13 | B24: Ph.D. | C24: 2 | D24: 2 | E24: 0 | F24: 0 | G24: 0 | H24: 0 | I24: 0 | J24: 2 | K24: 0 | L24: 2 | M24: 0 | N24: 0 | O24: 0 | P24: 0 | Q24: 0 | R24: 0 | S24: 2 | T24: 0 | U24: 2
B31: *Notes on "Students"
B32: Col: 03-09 | C32: Include the total no. of student admitted in a given academic year as numeric value for 1st year (Col. 4-6) and 2nd year - Lateral entry (Col. 7-9)
B33: Col: 10-12 | C33: Include the actual student strength in a given academic year in different level of Program, e.g, students from all 4 year in case of UG, all 2 years in case of PG and all PhD students.
B34: Col: 13-16 | C34: Students whose annual family income is less than Rs. 3 lakhs. Do not include the students who are counted under SC, ST, OBC given in column 14,15,16.
B35: Col: 18 | C35: No. of physically-challenged students
B36: Col: 19-21 | C36: No. of students admitted in respective years (first batch and lateral entry) and graduated in minimum time.
B37: Col: 22-26 | C37: No. of students successful in different public examinations
B38: Col: 27-30 | C38: No. of students placed and their salary per year (package)
B39: Col: 31-32 | C39: Mention the no. of students opted for higher studies through any competitive / entrance examination in col no. 31. Mention the no. of students opted for higher studies through merit basis or similar criterias without any written examination in col. 32.
B40: Col: 33-34 | C40: No. of students who became successful entrepreneurs in the same field i.e. Engg. and technology

Sheet Public Exam
A4: Details of Performance in Public Examinations for the Past 3 Academic Years (3.a)(Academic Years: 2012-13, 2013-14, 2014-15)
A8: Sr. No. | B8: Year | C8: Examination Body | D8: Name of the Examination | E8: No. of Successful Students
A10: =COUNT(A16:A898) -> 13 | C10: Performance in Public Examinations for the Past 3 Academic Years (3.a)
A11: Sr. No. | B11: Year
C12: Examination Body | D12: Name of the Examination | E12: No. of Successful Students
A14: [1] | B14: [2] | C14: [3] | D14: [4] | E14: [5]
E15: numeric only
A16: =+A15+1 -> 1 | B16: 2014-15 | C16: GATE | D16: IITs- Graduate Aptitude Test- FEB-15 | E16: 66
A17: =+A16+1 -> 2 | B17: 2013-14 | C17: GATE | D17: IITs- Graduate Aptitude Test- FEB-14 | E17: 55
A18: 3 | B18: 2012-13 | C18: GATE | D18: IITs- Graduate Aptitude Test- FEB-13 | E18: 56
A19: 4 | B19: 2014-15 | C19: State Public Service Commission | D19: MPSC-Maharashtra Public Service Commission-JUL-2014 | E19: 4
A20: 5 | B20: 2013-14 | C20: State Public Service Commission | D20: MPSC-Maharashtra Public Service Commission-JUL-2013 | E20: 9
A21: 6 | B21: 2012-13 | C21: State Public Service Commission | D21: MPSC-Maharashtra Public Service Commission-JUL-2012 | E21: 23
A22: 7 | B22: 2012-13 | C22: UPSC | D22: UPSC- Union Public Service Commision- DEC-12 | E22: 3
A23: 8 | B23: 2014-15 | C23: CAT | D23: IIMs- Common Admission Test- NOV- 14 | E23: 2
A24: 9 | B24: 2013-14 | C24: CAT | D24: IIMs- Common Admission Test- NOV- 13 | E24: 5
A25: 10 | B25: 2012-13 | C25: CAT | D25: IIMs- Common Admission Test- NOV- 12 | E25: 1
A26: 11 | B26: 2014-15 | C26: Others | D26: GRE & Others- Graduate Record Examination, Others-DEC-15 | E26: 3
A27: 12 | B27: 2013-14 | C27: Others | D27: GRE & Others- Graduate Record Examination, Others-DEC-15 | E27: 3
A28: 13 | B28: 2012-13 | C28: Others | D28: GRE & Others- Graduate Record Examination, Others-DEC-15 | E28: 4

Sheet Student Event
A4: Details Top Positions in Sports/Extra Curricular Events for past 3 years (Academic Years: 2012-13, 2013-14, 2014-15)
A8: Sr. No. | B8: Year | C8: Name of Event | D8: Position | E8: Type of Event
A10: =COUNT(A16:A949) -> 20 | C10: Top Position in Inter-college Sports/ Extra Curricular Events for the Past 3 Academic Years (1.d)
A11: Sr. No. | B11: Year
C12: Name of the Event | D12: Position | E12: Type of Event
A14: [1] | B14: [2] | C14: [3] | D14: [4] | E14: [5]
D15: numeric only | E15: International/ National/ State level
A16: =+A15+1 -> 1 | B16: 2012-2013 | C16: VOLLEYBALL INTERCOLLIGIATE AND INTERUNIVERSITY | D16: 1 | E16: State Level
A17: 2 | B17: 2013-2014 | C17: VOLLEYBALL INTERCOLLIGIATE AND INTERUNIVERSITY | D17: 1 | E17: State Level
A18: 3 | B18: 2014-2015 | C18: VOLLEYBALL INTERCOLLIGIATE AND INTERUNIVERSITY | D18: 1 | E18: State Level
A19: 4 | B19: 2013 - 14 | C19: Ashwamedh Chess Tournament, Beed | D19: First | E19: State
A20: 5 | B20: 2012 -13 | C20: Ignited Innovators of India, COEP | D20: First | E20: National
A21: 6 | B21: 2014 - 15 | C21: Dr B.A.M.University Aurangabad (MH) Inter College Swimming (Girls) | D21: 1 | E21: State Level
A22: 7 | B22: 2012-2013 | C22: Basketball | D22: 1 | E22: State Level
A23: =+A22+1 -> 8 | B23: 2013-2014 | C23: Poster Presentation | D23: 1 | E23: State Level
A24: 9 | B24: 2013-2014 | C24: Greeting Competition | D24: 1 | E24: State Level
A25: 10 | B25: 2013-2014 | C25: Tronicarambh 2013 Poster Presentation | D25: 1 | E25: State Level
A26: 11 | B26: 2013-2014 | C26: Rotoract Club of Achievers,Essay writing | D26: 1 | E26: State Level
A27: 12 | B27: 2013-2014 | C27: Rangoli Intercollegiate competetion | D27: 1 | E27: State Level
A28: 13 | B28: 2013-2014 | C28: International Dance Festival, Turkey | D28: 1 | E28: International
A29: 14 | B29: 2012-2013 | C29: Robo-race, Hi-Tech Institute Aurangabad | D29: 1 | E29: State Level
A30: 15 | B30: 2012-2013 | C30: Rob Tryst championship, JNEC Aurangabad | D30: 1 | E30: National
A31: 16 | B31: 2012-2013 | C31: Group Discussion Rotary Club Aurangabad East | D31: 1 | E31: International
A32: 17 | B32: 2012-2013 | C32: Lead India, Youth Leadership Development Program, Rotary Club of Aurangabad East | D32: 1 | E32: National
A33: 18 | B33: 2013-2014 | C33: Craze Purchaze, Vishwapreneur, 2013 | D33: 1 | E33: National
A34: 19 | B34: 2013-2014 | C34: Lead India, Youth Leadership Development Program, Rotary Club of Aurangabad East | D34: 1 | E34: National
A35: 20 | B35: 2013-2014 | C35: Paper Presentation, AWUT 2014, MGM's Jawaharlal Nehru Engineering College, Aurangabad | D35: 1 | E35: State Level

Sheet Facilities
A5: =COUNT(A13:A20) -> 0
A6: Year | B6: Library (1.c) - On Physical Resource : Books & Journals | C6: Library (1.c) - On e-Resources: e-Jouranals, e-books, etc. | D6: Laboratories (1.c) - On Creation/ Up-gradation & Equipment | E6: Laboratories (1.c) - On Maintenance & Safety | F6: Sports Facilities (1.d) - Total Area (In Sq. Mtrs.) - Outdoor | G6: Sports Facilities (1.d) - Total Area (In Sq. Mtrs.) - Indoor | H6: Sports Facilities (1.d) - Annual Expenditure amount (Rest. In Lakhs) | I6: Extra Curricular Facilities (1.d) - Expenditure Amount (Rest. In Lakhs) | J6: Number of Women Members of Eminence as Institute Head or in the Governing Board of the Institute being Ranked (4.c) | K6: Zero Deficiency Report (1.c) (To be filled by Institutions ranked under Category B) - For Library | L6: Zero Deficiency Report (1.c) (To be filled by Institutions ranked under Category B) - For Laboratory
A7: Annual Expenditures on Library, Laboratories and Sports Facilities Yearwise for Last 3 Financial Years Amount (Rs. in Lakhs)
A8: Year | B8: Library (1.c) | D8: Laboratories (1.c) | F8: Sports Facilities (1.d) | I8: Extra Curricular Facilities (1.d) | J8: Number of Women Members of Eminence as Institute Head or in the Governing Board of the Institute (4.c) | K8: Zero Deficiency Report (1.c) (To be filled by Institutions ranked under Category B)
B9: On Physical Resources: Books & Journals | C9: On e-Resources: e-Journals, e-books, etc. | D9: On Creation/ Up-gradation & Equipment | E9: On Maintenance & Safety | F9: Total Area (in Sq. Mtrs.) | H9: Annual Expenditures Amount (Rs. In Lakhs) | I9: Expenditures Amount (Rs. In Lakhs)
F10: Outdoor | G10: Indoor | K10: For Library | L10: For Laboratory
A11: [1] | B11: [2] | C11: [3] | D11: [4] | E11: [5] | F11: [6] | G11: [7] | H11: [8] | I11: [9] | J11: [10] | K11: [11] | L11: [12]
A12: Financial year in format 2014-15, 2013-14, 2012-13 | B12: numeric only upto 2 decimal | C12: numeric only upto 2 decimal | D12: numeric only upto 2 decimal | E12: numeric only upto 2 decimal | F12: numeric only upto 2 decimal | G12: numeric only upto 2 decimal | H12: numeric only upto 2 decimal | I12: numeric only upto 2 decimal | J12: numeric only | K12: Yes/No | L12: Yes/No
A13: 2014-15 | B13: 6.4 | C13: 13.5 | D13: 58.45 | E13: 44.63 | F13: 10179 | G13: 1298.46 | H13: 3.32736 | I13: 4.215 | J13: 0 | K13: Yes | L13: No
A14: 2013-14 | B14: 21.52 | C14: 13.5 | D14: 366.25 | E14: 31.83 | F14: 10179 | G14: 0 | H14: 4.09587 | I14: 3.14 | J14: 0 | K14: Yes | L14: No
A15: 2012-13 | B15: 25.42 | C15: 13.5 | D15: 107 | E15: 33.4 | F15: 10179 | G15: 0 | H15: 1.94461 | I15: 0 | J15: 0 | K15: Yes | L15: No
B17: Notes on "Facilities"
B18: Col: 02-09 | C18: Annual expenditures (Rs. in Lakhs upto 2 decimal points) including Library, Laboratories, Sports Facilities, Extra curricular.
B19: Col: 10 | C19: No of women members of eminence as institute head or in GB of the institute.
B20: Col: 11-12 | C20: These two columns need to be filled by Institutions ranked under Category B only. Please mention yes if your institute is having the zero deficiency report issued by AICTE.

Sheet PH_Facilities
A8: Details of Facilities for Physically Challenged Students (4.e)
A9: Sl. No | B9: Question | C9: Ans (Enter only numeric value i.e. 1 or 2 or 3 or 4)
A10: 1 | B10: Do your buildings have ramp? | C10: 1
B11: 1. No ramp
B12: 2. Less than or equal to 50%
B13: 3. More than 50%
A14: 2 | B14: Do your buildings have lifts? | C14: 4
B15: 1. No lift
B16: 2. Less than or equal to 50%
B17: 3. More than 50%
B18: 4. Building does not have more than three floors
A19: 3 | B19: Do you have provision for walking aids including wheel chairs and transportation from one building to another for handicapped students? | C19: 2
B20: 1. Yes
B21: 2. No
A22: 4 | B22: Do your buildings have specially designed toilets for handicapped students? | C22: 1
B23: 1. No such facility
B24: 2. In Less than or equal to 50% Buildings
B25: 3. In more than 50% buildings
A26: 5 | B26: Do you have Braille Lab / special Lab for Blinds/handicapped students? | C26: 2
B27: 1. Yes
B28: 2. No
A29: 6 | B29: Do you have special facilities for blinds students (such as text to audio convertor, screen magnification software, special provision for examiniation? | C29: 2
B30: 1. Yes
B31: 2. No

Sheet Sheet1 (hidden)
A1: <?xml version="1.0" encoding="UTF-8"?>
A2: djflj | B2: alsdj | C2: lkajsld
B12: gt1g2
